Cogmind - Beta 16 @@@ ROGUE MODE // 2025.12.03 @ 22:00:27 Player: Skysub Result: Destroyed by MAIN.C with Omega Cannon Performance ------------- Evolutions (9) 4500 Regions Visited (32) 6400 Robots Destroyed (403) 2015 Value Destroyed (22385) 22385 Prototype IDs (134) 2680 Alien Tech Used (6) 1200 Bonus (31299) 31299 TOTAL SCORE: 70479 Bonus ------- High Alert Combat Kills 4054 Follower Combat Kills 2984 Entered Garrisons 200 Network Hubs Disabled 200 Met Imprinter 300 Destroyed Z-Imprinter 1000 Triggered Deep Caves Wall 500 Exposed GOLEM Chamber 500 Met Zhirov 300 Met Warlord at Base 500 MAIN.C Attacked Warlord 500 Warlord Defense Kills 1310 Built Enhanced Grunts 300 Met R17 at Cetus 500 Read Decrypted Archives 300 Found Hidden Lab 3000 Used Core Reset Matrix 3000 Met R17 at Research 2000 Met Warlord at Research 2000 Destroyed MAIN.C Guards 500 Met MAIN.C 5000 Destroyed MAIN.C Shell 5000 Friendly Fire -2649 Cogmind --------- Core Integrity 0/1600 Matter 300/300 Energy 98/100 System Corruption 16% Temperature Cool (0) Movement Core (100) Ox1 Location -1/Command Parts ------- > --- POWER (3) -------- (None) > --- PROPULSION (6) --- (None) > --- UTILITY (14) ----- Advanced Terrain Scan Processor Experimental Melee Analysis Suite Experimental Melee Analysis Suite Concept Melee Reflex Suite > --- WEAPON (3) ------- Experimental Jetlance > --- INVENTORY (5) ---- High-powered Transdimensional Reconstructor Subatomic Replicator Vortex Rail (40) Potential Cannon Peak State ------------ > --- POWER ------------ Hybrid Graviton Reactor Concept Zero-point Core Concept Zero-point Core > --- PROPULSION ------- Biometal Leg Assembled Alloy Leg Assembled Alloy Leg Centrium Leg Centrium Leg Experimental VSS Leg > --- UTILITY ---------- Experimental Cooling System Concept Antigrav Storage Unit Assembled Biocell Array Experimental Optical Array Advanced Terrain Scan Processor Transport Network Coupler Assembled Combat Suite Concept Weapon Articulator Experimental Force Booster Advanced Thermal Shield AEGIS Remote Shield Concept Antimissile System Deep Network Scanner Concept Matter Streamer > --- WEAPON ----------- Concept Plasma Driver Concept Plasma Driver Experimental Jetlance > --- INVENTORY -------- Quantum Reactor Quantum Reactor Experimental Antimatter Reactor Hybrid Graviton Reactor Centrium Leg Advanced Signal Interpreter Experimental Melee Analysis Suite Experimental Melee Analysis Suite Experimental Melee Analysis Suite Concept Melee Reflex Suite Femtoactuators High-powered Transdimensional Reconstructor High-powered Transdimensional Reconstructor Subatomic Replicator Vortex Rail Concept Variable Chargecaster Enhanced Nova Cannon Enhanced Nova Cannon Enhanced Nova Cannon Potential Cannon Concept XC Strikerail Mini Smartbomb Launcher Experimental Jetlance Experimental Jetlance [Rating: 268] Favorites ----------- Power Cooled Ion Engine Engine Cooled Ion Engine Power Core Concept Zero-point Core Reactor Assembled Flux Generator Propulsion Assembled Alloy Leg Treads Improved Medium Treads Leg Assembled Alloy Leg Wheel Compact Wheel Hover Unit Zionite Glidesys I Flight Unit Electron Diverter Utility Assembled Alloy Armor Device Assembled Nanovents Storage Assembled Biocell Array Processor Advanced Targeting Computer Hackware Deep Network Scanner Protection Assembled Alloy Armor Weapon Assembled Focal Cannon Energy Gun Gatling Laser Energy Cannon Assembled Focal Cannon Ballistic Gun Enhanced Autogun Launcher Grenade Launcher Special Weapon RU-N14's Throwing Claymores v3 Impact Weapon Hammer Slashing Weapon Scythe Piercing Weapon Experimental Jetlance Build | -11 -10 -10 -10 -8 -8 -8 -6 -6 -6 -6 -6 -5 -5 -5 -5 -5 -5 -4 -4 -4 -4 -3 -3 -3 -3 -2 -2 -2 -1 -1 -1 -1 ------- Run | Yrd Mat Min Sub Mat Sto Rec Fac Low Low Zio Dee Pro Fac Ext Cet Arc Hub Fac Upp Upp War Pro Res Arm Lab Res Qua Frg Acc Gar Acc Com Slots Evolved 18 | . . . . 4 . . 4 . . . . . 2 . . . . 2 . . . . 2 . . 2 . . 2 . . . Power 2 | . . . . . . . 1 . . . . . . . . . . . . . . . 1 . . . . . . . . . Propulsion 3 | . . . . 2 . . . . . . . . . . . . . . . . . . . . . . . . 1 . . . Utility 12 | . . . . 2 . . 2 . . . . . 2 . . . . 2 . . . . 1 . . 2 . . 1 . . . Weapon 1 | . . . . . . . 1 . . . . . . . . . . . . . . . . . . . . . . . . . Parts Attached 285 | 8 4 3 18 19 27 2 20 3 4 6 35 2 1 6 8 . . 8 3 1 10 . 2 19 3 8 8 23 10 12 1 11 Power 32 | 1 . . 1 3 3 . . . 1 2 4 . . . 1 . . 2 . . 1 . 1 6 . 1 . 5 . . . . Engine 8 | 1 . . 1 2 3 . . . 1 . . . . . . . . . . . . . . . . . . . . . . . Core 5 | . . . . 1 . . . . . 2 . . . . . . . . . . . . . . . . . 2 . . . . Reactor 19 | . . . . . . . . . . . 4 . . . 1 . . 2 . . 1 . 1 6 . 1 . 3 . . . . Propulsion 68 | 2 1 . 5 7 12 . 4 . 1 . 11 1 . 3 3 . . . 3 1 2 . . 3 . 1 2 2 1 2 . 1 Treads 32 | 2 1 . 1 7 11 . 3 . 1 . 4 . . . 2 . . . . . . . . . . . . . . . . . Leg 18 | . . . . . . . . . . . 1 . . . . . . . 3 1 2 . . 3 . 1 1 2 1 2 . 1 Wheel 5 | . . . 4 . . . 1 . . . . . . . . . . . . . . . . . . . . . . . . . Hover 12 | . . . . . 1 . . . . . 6 1 . 3 1 . . . . . . . . . . . . . . . . . Flight 1 | . . . . . . . . . . . . . . . . . . . . . . . . . . . 1 . . . . . Utility 116 | 2 1 1 4 4 6 2 9 3 2 1 15 1 1 2 2 . . 3 . . 3 . 1 9 1 6 3 12 5 9 1 7 Device 56 | 1 . . 1 1 3 . 6 1 1 . 9 . 1 . . . . 1 . . 3 . . 7 1 2 1 9 2 5 . 1 Storage 8 | 1 1 1 1 . . . 1 . . . 1 . . . . . . . . . . . 1 . . . . 1 . . . . Processor 19 | . . . . . . . . 2 . . 1 . . . . . . 1 . . . . . 1 . 3 1 2 2 2 . 4 Hackware 4 | . . . . . . . 1 . 1 . 1 . . . . . . . . . . . . . . . 1 . . . . . Protection 29 | . . . 2 3 3 2 1 . . 1 3 1 . 2 2 . . 1 . . . . . 1 . 1 . . 1 2 1 2 Artifact . | . . . . . . . . . . . . . . . . . . . . . . . . . . . . . . . . . Weapon 69 | 3 2 2 8 5 6 . 7 . . 3 5 . . 1 2 . . 3 . . 4 . . 1 2 . 3 4 4 1 . 3 Energy Gun 21 | 1 . . . 1 3 . 2 . . . 5 . . . 1 . . 3 . . 2 . . 1 . . 1 1 . . . . Energy Cannon 13 | . . . . . . . 4 . . 1 . . . . . . . . . . . . . . 2 . 1 1 2 . . 2 Ballistic Gun 18 | 1 2 1 6 3 2 . . . . . . . . 1 1 . . . . . . . . . . . . . . 1 . . Ballistic Cannon . | . . . . . . . . . . . . . . . . . . . . . . . . . . . . . . . . . Launcher 6 | . . . 2 . 1 . . . . 2 . . . . . . . . . . . . . . . . . . 1 . . . Special Weapon 3 | 1 . . . . . . . . . . . . . . . . . . . . 2 . . . . . . . . . . . Impact Weapon 1 | . . 1 . . . . . . . . . . . . . . . . . . . . . . . . . . . . . . Slashing Weapon 3 | . . . . 1 . . 1 . . . . . . . . . . . . . . . . . . . . 1 . . . . Piercing Weapon 4 | . . . . . . . . . . . . . . . . . . . . . . . . . . . 1 1 1 . . 1 Special Melee Weapon . | . . . . . . . . . . . . . . . . . . . . . . . . . . . . . . . . . Unidentified Prototypes 65 | . . . . 2 5 . 1 . . 2 12 . . . 4 . . . . . 8 . . 8 5 4 4 7 1 . . 2 Corrupted Parts 2 | . . . . . . . . . . . . . . . 1 . . 1 . . . . . . . . . . . . . . System Corruption 7 | . . . . . . . . . . . . . . . 6 . . 1 . . . . . . . . . . . . . . Parts Lost 123 | . . . 8 2 5 . 1 4 . . 13 3 . 4 1 . 3 14 4 3 1 . 1 18 . . . 14 3 1 . 20 Power 11 | . . . 1 . . . . 1 . . 3 . . . . . 1 2 . . . . . 2 . . . . . . . 1 Propulsion 31 | . . . 4 . 1 . 1 1 . . 5 2 . 2 . . . 3 . 1 . . . 2 . . . . 1 1 . 7 Utility 58 | . . . 1 2 3 . . 2 . . 4 . . 1 . . . 5 3 2 1 . . 11 . . . 12 1 . . 10 Weapon 23 | . . . 2 . 1 . . . . . 1 1 . 1 1 . 2 4 1 . . . 1 3 . . . 2 1 . . 2 Highest Loss Streak 19 | . . . 4 2 1 . 1 2 . . 9 2 . 2 1 . 3 8 2 1 1 . 1 8 . . . 4 1 1 . 19 To Critical Strikes 2 | . . . 1 . . . . . . . . . . . . . . 1 . . . . . . . . . . . . . . Average Backups 14 | 4 8 11 16 17 17 18 21 22 22 16 13 3 3 4 4 5 5 4 4 4 4 5 6 17 9 17 18 18 22 23 23 21 Power 1 | . 1 1 . . 1 1 . 1 1 . . . . . . . . . 2 1 . . . 2 1 1 1 2 3 2 2 1 Propulsion 2 | 1 3 4 5 4 4 4 6 4 5 4 1 . . . . . . . . 1 1 1 1 2 . . 2 1 . . 1 . Utility 5 | . 1 2 1 3 5 5 8 9 9 7 6 3 3 4 3 3 3 2 1 1 1 2 2 7 4 7 7 6 5 7 8 6 Weapon 4 | 1 2 3 8 8 6 7 6 6 6 4 4 . . . 1 2 2 1 . . 1 2 2 5 3 6 4 4 9 9 9 9 Tool/Special . | . . . . . . . . . . . . . . . . . . . . . . . . . . . . . . . . . Unused Backups 86 | . . . 4 12 3 1 1 . 2 24 5 . . 1 2 . . . . 2 2 . . 6 1 1 3 6 1 3 . 6 Power 6 | . . . 1 . 1 . . . 1 . . . . . . . . . . . . . . . . . . 1 1 . . 1 Propulsion 13 | . . . . 1 1 1 . . . 6 . . . . . . . . . . 1 . . 2 . . . . . 1 . . Utility 32 | . . . . 2 1 . . . 1 11 4 . . 1 1 . . . . 2 . . . 3 . 1 . 4 . 1 . . Weapon 29 | . . . 3 9 . . 1 . . 6 1 . . . 1 . . . . . 1 . . 1 1 . 1 1 . 1 . 2 Tool/Special 6 | . . . . . . . . . . 1 . . . . . . . . . . . . . . . . 2 . . . . 3 Average Slot Usage (%) 89 | . 100 100 98 96 99 100 95 91 92 83 87 92 89 90 81 82 80 72 72 88 85 89 86 87 90 90 91 89 88 92 94 88 Engine 4 | . 14 14 13 8 9 9 12 9 8 9 4 . . . . . . . . . . . . . . . . . . . . . Reactor 3 | . . . . . . . . . . . 3 13 11 7 9 11 10 6 4 5 5 5 5 8 10 8 8 6 3 3 3 2 Treads 11 | . 28 28 2 29 35 36 25 25 26 24 19 . . . 9 11 11 6 . . . . . . . . . . . . . . Leg 8 | . . . . . . . . . . . . . . . . . . 2 13 20 17 21 19 18 21 20 20 19 22 23 23 21 Wheel 1 | . . . 24 6 . . . . . 1 . . . . . . . . . . . . . . . . . . . . . . Device 16 | . 14 14 2 5 7 . 18 15 12 7 13 14 13 11 11 11 11 14 21 31 31 31 26 27 27 21 16 19 24 16 19 18 Storage 8 | . 14 14 14 8 9 9 6 6 6 6 4 . 2 5 5 5 5 5 5 5 5 5 5 9 9 11 12 10 7 7 7 6 Processor 5 | . . . . . . . . 9 13 12 8 13 11 11 11 11 11 10 10 5 5 5 4 1 . 2 4 4 7 11 13 11 Hackware 2 | . . . . . . . 5 6 6 5 1 6 5 5 5 5 5 5 2 . . . . . . . 2 4 3 3 3 2 Protection 7 | . . . 11 19 18 27 6 . . . 9 4 3 5 5 5 5 6 3 5 5 5 8 6 8 11 12 9 . 5 3 2 Energy Gun 2 | . 14 1 . . . 9 5 6 6 3 4 13 11 7 4 5 4 2 . . . . . . . . . . . . . . Energy Cannon 6 | . . . . . . . 8 7 7 4 6 . 3 5 5 5 7 10 9 15 12 5 6 12 12 12 11 10 4 7 7 6 Ballistic Gun 3 | . 14 19 7 17 16 4 . . . . . . . 2 5 5 2 . . . . . . . . . . . . 1 3 1 Peak Build Rating 268 | 7 8 8 18 28 38 40 67 66 61 74 103 103 116 115 134 134 135 152 161 162 171 170 187 195 205 223 225 261 268 252 252 265 Average Rating 117 | 4 7 8 11 25 29 36 58 55 54 50 76 90 106 108 127 134 132 125 129 160 162 170 179 182 195 218 220 226 245 242 248 238 On Entrance 117 | . 7 8 8 18 27 38 36 61 49 58 74 103 89 112 107 134 134 118 63 161 157 170 170 175 184 204 222 222 218 243 252 244 Avg Prop Armor Cover (%) 18 | . . . 12 13 11 . . . . 32 30 . . . . . . 25 . . 4 4 4 . . . . . . . . 2 Naked Turns . | . . . . . . . . . . . . . . . . . . . . . . . . . . . . . . . . . Heaviest Build 180 | 14 19 30 55 66 73 72 129 127 118 112 89 33 48 54 66 65 74 99 97 97 97 87 146 175 168 168 166 180 137 151 138 160 Greatest Support 174 | 40 40 40 40 80 88 88 121 121 121 121 112 58 54 54 160 160 160 160 125 125 140 90 140 140 170 170 170 170 174 174 174 174 Greatest Overweight (x) 9 | 2 . . 3 3 1 . 1 1 1 8 7 . . 1 1 . . 9 1 1 1 . 1 1 . . . 1 . 1 . 1 Average Overweight (x) . | . . . 1 . . . . . . 1 . . . . . . . . . . . . . . . . . . . . . . Largest Inventory Capacity 25 | 8 10 15 20 20 20 20 25 25 25 25 20 5 5 5 5 5 5 5 5 5 5 5 20 20 20 20 20 25 25 25 25 25 Average Capacity 16 | 7 9 12 19 19 20 20 24 25 25 22 15 5 5 5 5 5 5 5 5 5 5 5 8 20 10 19 20 21 25 25 25 24 Most Carried 25 | 6 10 15 20 20 20 20 25 25 25 25 20 5 5 5 5 5 5 5 5 5 5 5 11 20 20 20 20 25 25 25 25 25 Average Carried 15 | 4 8 12 17 18 19 19 23 24 24 17 14 4 4 4 4 5 5 4 4 4 4 5 6 18 9 18 19 19 23 24 25 23 Final Capacity 25 | 8 10 15 20 20 20 20 25 25 25 20 5 5 5 5 5 5 5 5 5 5 5 5 20 20 20 20 20 25 25 25 25 5 Final Carried 25 | 5 10 15 18 20 20 20 25 24 25 19 5 4 4 5 5 5 5 4 5 5 5 5 11 20 20 20 20 22 25 25 25 5 Class Distribution -------------------- 29% | Mutant 24% | Golem 7% | Scavenger-Mutant 6% | Scavenger-Gunner 5% | Alien-Golem 4% | Scavenger-Tank 3% | Skirmisher 3% | Hacker-Golem 3% | Hacker-Tank Dominant Class ---------------- Mutant | -10/Materials Mutant | -10/Mines Mutant | -10/Subcaves Scavenger-Mutant | -8/Materials Scavenger-Mutant | -8/Storage Mutant | -8/Recycling Mutant | -6/Factory Mutant | -6/Lower Caves Skirmisher | -6/Lower Caves Mutant | -6/Zion Scavenger-Gunner | -6/Deep Caves Scavenger-Mutant | -5/Proximity Caves Scavenger-Gunner | -5/Factory Scavenger-Gunner | -5/Extension Scavenger-Tank | -5/Cetus Scavenger-Tank | -5/Archives Scavenger-Tank | -5/Hub_04(d) Scavenger-Tank | -4/Factory Golem | -4/Upper Caves Golem | -4/Upper Caves Golem | -4/Warlord Golem | -3/Proximity Caves Golem | -3/Research Golem | -3/Armory Golem | -3/Lab Golem | -2/Research Hacker-Golem | -2/Quarantine Alien-Golem | -2/Protoforge Hacker-Mutant | -1/Access Hacker-Tank | -1/Garrison Scavenger-Gunner | -1/Access Hacker-Gunner | -1/Command Resources | -11 -10 -10 -10 -8 -8 -8 -6 -6 -6 -6 -6 -5 -5 -5 -5 -5 -5 -4 -4 -4 -4 -3 -3 -3 -3 -2 -2 -2 -1 -1 -1 -1 ----------- Run | Yrd Mat Min Sub Mat Sto Rec Fac Low Low Zio Dee Pro Fac Ext Cet Arc Hub Fac Upp Upp War Pro Res Arm Lab Res Qua Frg Acc Gar Acc Com Matter Collected 6798 | 211 250 73 388 875 1074 92 346 114 78 219 682 39 . 231 188 . . 65 87 43 130 . 50 374 . 217 80 355 165 115 45 212 Remotely 238 | . . . . . 84 . . . . . . . . . . . . . . . . . . . . . . 94 60 . . . Salvage Created 21372 | 104 378 163 362 1117 1582 60 1147 316 108 . 561 . . 711 37 . 436 1460 511 293 313 . 387 2362 . 611 1179 2319 1318 1421 549 1567 Parts 899 | 4 30 7 17 63 83 3 43 7 6 . 10 . . 43 . . 17 38 29 15 10 . 14 115 . 17 60 108 63 44 18 35 Haulers Intercepted 13 | . 2 . . 2 6 . . . . . . . . . . . . . . . . . . . . 1 1 . 1 . . . Recyclers Shooed 8 | 2 . . . 1 . . 1 . . . . . . 1 . . . 1 . . . . . . . . . . . . . 2 Parts Field Recycled . | . . . . . . . . . . . . . . . . . . . . . . . . . . . . . . . . . Retrieved Matter . | . . . . . . . . . . . . . . . . . . . . . . . . . . . . . . . . . Parts Self-Destructed 67 | . . . 7 . . . . 8 2 3 . . . . . . . . 34 13 . . . . . . . . . . . . Prevented 3 | . . . . . . . . . . . . 1 . . . . . . . . . 2 . . . . . . . . . . Parts Restored . | . . . . . . . . . . . . . . . . . . . . . . . . . . . . . . . . . Kills | -11 -10 -10 -10 -8 -8 -8 -6 -6 -6 -6 -6 -5 -5 -5 -5 -5 -5 -4 -4 -4 -4 -3 -3 -3 -3 -2 -2 -2 -1 -1 -1 -1 ------- Run | Yrd Mat Min Sub Mat Sto Rec Fac Low Low Zio Dee Pro Fac Ext Cet Arc Hub Fac Upp Upp War Pro Res Arm Lab Res Qua Frg Acc Gar Acc Com Combat Hostiles Destroyed 372 | . 12 3 10 16 23 1 20 6 1 . 44 . . 7 . . 7 17 12 4 9 . 7 48 . 5 11 42 25 18 8 16 Melee 5 | . . . . 2 1 . . . . . . . . . . . . 1 1 . . . . . . . . . . . . . Guns 64 | . 12 2 2 14 19 1 2 1 . . . . . 2 . . 1 4 . . . . . 3 . . . . . . 1 . Cannons 183 | . . . . . . . 16 5 1 . 3 . . 5 . . 5 10 11 4 3 . 1 37 . 5 9 34 11 13 5 5 AOE 95 | . . . 7 . 3 . 2 . . . 39 . . . . . . . . . 6 . 6 8 . . . 6 10 . . 8 Classes Destroyed 30 | 2 4 . 1 6 . . 2 . . . 3 . . 2 . . . . . . 6 . . 1 . . . 3 . . . . Worker 10 | . . . . 1 3 . 1 . . . . . . . . . 1 . . . . . 1 . . 1 1 . 1 . . . Builder 12 | . 1 1 . 3 . . . . . . . . . . . . . 1 . . . . 1 . . . 2 1 2 . . . Tunneler 2 | 1 . 1 . . . . . . . . . . . . . . . . . . . . . . . . . . . . . . Hauler 13 | . 2 . . 2 6 . . . . . . . . . . . . . . . . . . . . 1 1 . 1 . . . Recycler 11 | 1 . . . 2 2 . 1 . . . . . . 1 . . . 1 . . . . 1 . . . 1 . . . . 1 Mechanic 2 | . . . . 2 . . . . . . . . . . . . . . . . . . . . . . . . . . . . Operator 4 | . . . . . . . . . . . . . . 2 . . . . . . . . . . . 1 . 1 . . . . Drone 4 | . . . . . . . . . . . . . . . . . . . . . . . . . . . . 4 . . . . Watcher 12 | . . . . 1 . . 1 . . . . . . 2 . . . 1 . . . . . 3 . 1 1 2 . . . . Swarmer 78 | . 9 . . 2 4 . 4 . . . . . . 2 . . . . 8 . 1 . . 21 . . . 4 13 1 . 9 Saboteur 1 | . . . . . . . . . . . . . . . . . . . . . . . . 1 . . . . . . . . Grunt 83 | . 3 3 . 7 15 . 11 5 . . . . . . . . 5 8 1 . 2 . 5 . . 2 4 4 3 5 . . Brawler 5 | . . . . 1 . . 1 1 . . . . . . . . . 1 . . . . . . . 1 . . . . . . Duelist 2 | . . . . . . . . . . . . . . . . . . . . . 1 . . . . . . . 1 . . . Protector 1 | . . . . . . . . . . . . . . . . . . . . . 1 . . . . . . . . . . . Sentry 39 | . . . . 4 5 . . . . . . . . 3 . . . 6 1 . . . 1 4 . 1 . 4 3 6 . 1 Demolisher 1 | . . . . . . . . . . . . . . . . . . . . . 1 . . . . . . . . . . . Specialist 7 | . . . . . . . . . . . . . . . . . . . . . 1 . . 6 . . . . . . . . Hunter 27 | . . . . 2 . . 2 . . . . . . . . . . . 2 4 . . 1 4 . . 2 2 2 4 2 . Programmer 43 | . . . . . . . 1 . 1 . . . . . . . 2 2 . . . . . 12 . 1 5 9 3 1 5 1 Heavy 1 | . . . . . . . 1 . . . . . . . . . . . . . . . . . . . . . . . . . Behemoth 5 | . . . . . . . . . . . . . . 2 . . . . . . . . . . . . . 1 . 1 1 . M Guard 2 | . . . . . . . . . . . . . . . . . . . . . . . . . . . . . . . . 2 Decapitator 7 | . . . . . . . . . . . . . . . . . . . . . . . . . . . . 7 . . . . Immortal 5 | . . . . . . . . . . . . . . . . . . . . . . . . . . . . 5 . . . . Combat Programmer 2 | . . . . . . . . . . . . . . . . . . . . . . . . . . . . . . . . 2 Striker 1 | . . . . . . . . . . . . . . . . . . . . . 1 . . . . . . . . . . . Executioner 1 | . . . . . . . . . . . . . . . . . . . . . 1 . . . . . . . . . . . V-Series 2 | . . . . . . . . . . . . . . . . . . . . . . . . . . . . 2 . . . . Subdweller 11 | . . . 10 . . 1 . . . . . . . . . . . . . . . . . . . . . . . . . . Z-Light 3 | . . . . . . . . . . . 3 . . . . . . . . . . . . . . . . . . . . . Assembled 40 | . . . . . . . . . . . 40 . . . . . . . . . . . . . . . . . . . . . Golem 1 | . . . . . . . . . . . 1 . . . . . . . . . . . . . . . . . . . . . Savage 3 | . . . . . . . . . 1 . . . . . . . . . . . 2 . . . . . . . . . . . Best Kill Streak 35 | 1 5 3 3 8 8 1 6 3 1 . 35 . . 4 . . 7 4 6 2 6 . 4 9 . 2 4 9 13 6 2 6 Combat Bots Only 35 | . 3 2 3 4 7 1 6 3 1 . 35 . . 3 . . 7 4 6 2 6 . 4 8 . 2 3 8 13 6 2 5 Max Kills in Single Turn 18 | 1 1 1 2 2 4 1 2 1 1 . 18 . . 1 1 . 1 1 1 1 5 . 3 4 . 1 1 2 3 2 2 3 Gunslinging . | . . . . . . . . . . . . . . . . . . . . . . . . . . . . . . . . . Exploded 18 | . . . 2 . 3 . 2 . . . 18 . . . . . . . . . 5 . 3 4 . . . 2 3 . . 3 Melee 1 | . . . . 1 1 . . . . . . . . . . . . 1 1 . . . . . . . . . . . . . Uniques/NPCs Destroyed 3 | . . . . . . . . . . . 1 . . . 1 . . . . . . . . . . . . . . . . 1 Z-Imprinter (-6/Deep Caves) A7 (-5/Cetus) MAIN.C Shell (-1/Command) Combat | -11 -10 -10 -10 -8 -8 -8 -6 -6 -6 -6 -6 -5 -5 -5 -5 -5 -5 -4 -4 -4 -4 -3 -3 -3 -3 -2 -2 -2 -1 -1 -1 -1 -------- Run | Yrd Mat Min Sub Mat Sto Rec Fac Low Low Zio Dee Pro Fac Ext Cet Arc Hub Fac Upp Upp War Pro Res Arm Lab Res Qua Frg Acc Gar Acc Com Hostile Shots Fired 2542 | . 61 15 32 86 131 14 66 43 . . 120 19 . 19 17 . 64 309 178 53 38 . 56 442 . 60 75 244 45 93 37 225 Missed 889 | . 12 2 7 13 35 3 15 12 . . 47 10 . 5 7 . 29 82 75 26 23 . 36 191 . 32 32 71 15 30 12 67 Intercepted 2 | . . . . . . . . . . . . . . . . . . . . . . . . . . . . . . . . 2 Hits 1653 | . 49 13 25 73 96 11 51 31 . . 73 9 . 14 10 . 35 227 103 27 15 . 20 251 . 28 43 173 30 63 25 158 Melee 84 | . . . . . . . 3 1 . . . . . . . . . 8 . . 3 . . 4 . . . 65 . . . . Projectile 1569 | . 49 13 25 73 96 11 48 30 . . 73 9 . 14 10 . 35 219 103 27 12 . 20 247 . 28 43 108 30 63 25 158 AOE 8 | . . . 1 . . . . . . . . . . . . . . . . . 5 . . . . . . . . . . 2 Critical Strikes 107 | . . . 2 2 5 . 4 2 . . . . . . 1 . . 13 1 1 1 . 2 6 . 3 2 44 1 5 2 10 Actively Blocked 1 | . . . . . . . . . . . . . . . . . . 1 . . . . . . . . . . . . . . Part Disruptions 19 | . . . . . . . . . . . 1 . . . . . . . . . . . . 1 . . . 2 . . . 15 Damage Taken 31987 | . 439 151 957 990 1414 236 1153 607 . . 2317 173 . 326 261 . 786 4436 1419 260 466 . 362 3768 . 420 587 4017 355 731 161 5195 Core 4173 | . 76 21 126 154 105 20 123 56 . . 138 23 . 31 . . 76 719 54 . 48 . 43 284 . . 71 388 50 61 . 1506 Absorbed by Shields 7336 | . . . . . . . 43 . . . . . . 74 26 . . 482 . . 14 . . 498 . 301 323 2926 340 695 154 1460 Redirected to Shielding 338 | . . . 40 . . . . . . . 175 . . . . . . 123 . . . . . . . . . . . . . . Ignored by Resistances 3173 | . . . . . . . . . . . . . . . . . . . 302 54 94 . 78 1237 . 143 187 1078 . . . . Regen/Repaired (Parts) 662 | . . . . 303 . . . . . 183 . . . . . . . . . . . . . . . . . . . . . 176 Core Remaining (%) 59 | 100 . . 10 . . 49 . . . . . 60 . . . . 89 . . . . 28 . . 74 . . 64 . . . . Volleys Fired 1048 | 14 50 5 22 82 75 2 51 12 3 5 26 1 6 25 17 . 15 80 23 9 23 . 20 166 7 44 53 115 20 28 20 29 Largest 3 | 2 2 2 2 2 2 2 3 3 3 1 2 2 1 3 3 . 3 3 3 3 3 . 2 3 1 2 3 3 2 3 3 3 Hottest 430 | 60 60 40 60 86 58 86 300 260 260 40 120 120 25 145 140 . 130 240 75 75 75 . 50 148 25 100 170 225 280 312 312 430 Shots Fired 1956 | 17 100 10 37 159 150 4 126 36 7 5 46 1 6 61 39 1 33 129 46 27 31 . 34 283 10 50 63 228 34 60 48 75 Gun 685 | 17 100 10 18 159 147 4 35 13 3 . 6 1 . 36 22 1 13 56 . . . . . 16 . . . . . 6 14 8 Cannon 1225 | . . . . . . . 91 23 4 5 34 . 6 25 17 . 20 73 46 27 29 . 30 263 10 50 63 228 30 54 34 63 Launcher 36 | . . . 19 . 3 . . . . . 6 . . . . . . . . . . . . . . . . . 4 . . 4 Special 10 | . . . . . . . . . . . . . . . . . . . . . 2 . 4 4 . . . . . . . . Kinetic 444 | 14 50 10 18 157 147 2 4 . . . . . . 1 12 1 . . . . . . . . . . . . . 6 14 8 Thermal 1425 | 3 50 . . 2 . 2 122 36 7 5 34 . 6 36 24 . 33 129 46 27 29 . 30 272 10 50 63 228 30 54 34 63 Explosive 46 | . . . 19 . 3 . . . . . 6 . . . . . . . . . 2 . 4 4 . . . . 4 . . 4 Electromagnetic . | . . . . . . . . . . . . . . . . . . . . . . . . . . . . . . . . . Entropic 7 | . . . . . . . . . . . . . . . . . . . . . . . . 7 . . . . . . . . Phasic 34 | . . . . . . . . . . . 6 1 . 24 3 . . . . . . . . . . . . . . . . . Robot Hit Streak 34 | 4 8 6 7 9 12 3 8 7 3 . 6 7 . 11 6 . 11 34 8 7 8 . 12 17 . 20 27 33 19 7 15 29 Robot Miss Streak 6 | 3 4 2 2 6 5 1 5 4 2 . 4 . . 1 3 1 2 4 3 2 2 . 1 3 . 1 2 4 2 2 1 1 Penetration Max 1 | . . . . . . . . . . . . . . . 1 . . . . . . . . . . . . 1 1 1 1 1 Secondary Targets 6 | . . 1 . 1 4 . . . . . . . . . . . . . . . . . . . . . . . . . . . Max Gunslinging Chain 1 | . . 1 . 1 1 . . . . . . . . . . . . . . . . . . . . . . . . . . . Shots Hit Robots 1220 | 8 63 12 42 95 89 3 71 29 5 . 25 1 . 43 29 . 23 93 21 14 19 . 7 155 . 21 20 157 23 39 17 96 Core Hits 799 | 3 21 4 18 43 55 1 55 16 5 . 133 . . 19 10 . 9 42 13 8 24 . 19 77 . 13 18 85 25 25 9 49 Critical Kills 25 | . . . . 1 2 . . . . . 2 . . . . . . . . . . . . . . 2 3 1 4 5 2 3 Critical Parts Destroyed 10 | . . 2 4 1 1 . . . . . . . . . 1 . . . . . . . . 1 . . . . . . . . Critical Strikes 60 | . . 2 4 2 3 . . . . . 2 . . 1 2 . . 2 . . . . 1 1 . 2 3 1 5 5 2 22 Burn 2 | . . . . . . . . . . . . . . . . . . 2 . . . . . . . . . . . . . . Meltdown 22 | . . . . . . . . . . . 2 . . . . . . . . . . . . . . 2 3 1 4 5 2 3 Destroy 6 | . . . . 2 3 . . . . . . . . . 1 . . . . . . . . . . . . . . . . . Smash 6 | . . 2 4 . . . . . . . . . . . . . . . . . . . . . . . . . . . . . Sever 1 | . . . . . . . . . . . . . . . . . . . . . . . 1 . . . . . . . . . Impale 20 | . . . . . . . . . . . . . . . . . . . . . . . . . . . . . 1 . . 19 Detonate 1 | . . . . . . . . . . . . . . . . . . . . . . . . 1 . . . . . . . . Intensify 2 | . . . . . . . . . . . . . . 1 1 . . . . . . . . . . . . . . . . . Melee Attacks 111 | . . 16 41 3 3 1 8 . 1 . . . . . . . . . . . . . . . . . . . 1 . . 37 Impact 57 | . . 16 41 . . . . . . . . . . . . . . . . . . . . . . . . . . . . . Slashing 16 | . . . . 3 3 1 8 . 1 . . . . . . . . . . . . . . . . . . . . . . . Piercing 38 | . . . . . . . . . . . . . . . . . . . . . . . . . . . . . 1 . . 37 Sneak Attacks 4 | . . 2 . . . . 1 . . . . . . . . . . . . . . . . . . . . . 1 . . . Combat Hostiles . | . . . . . . . . . . . . . . . . . . . . . . . . . . . . . . . . . Follow-up Attacks 13 | . . . . . . . . . . . . . . . . . . . . . . . . . . . . . . . . 13 Damage Inflicted 69445 | 102 704 257 1667 1658 1940 54 2301 814 142 . 3905 33 . 1645 1173 . 962 3945 1007 631 2725 . 2163 9489 . 1368 1717 11922 4442 3907 1642 7130 Guns 9232 | 102 704 90 170 1579 1602 54 503 245 33 . 33 33 . 796 514 . 273 1449 . . . . . 620 . . . . . 170 186 76 Cannons 41162 | . . . . . . . 1531 569 109 . 806 . . 849 659 . 674 2232 985 631 810 . 315 6958 . 1368 1717 9594 2491 3632 1456 3776 Explosions 15158 | . . . 929 . 283 . 201 . . . 3066 . . . . . . 130 . . 1857 . 1550 1764 . . . 2328 1865 105 . 1080 Melee 3034 | . . 167 568 . . . 60 . . . . . . . . . . . . . . . . . . . . . 86 . . 2153 Ramming 604 | . . . . 79 55 . 6 . . . . . . . . . 15 134 22 . . . 248 . . . . . . . . 45 Kinetic 4674 | 102 359 90 170 1559 1602 34 38 . . . . . . . 288 . . . . . . . . . . . . . . 170 186 76 Thermal 47778 | . 345 . . 20 . 20 2197 814 142 . 806 . . 1018 786 . 947 3681 985 631 810 . 315 7425 . 1368 1717 11922 2965 3632 1456 3776 Explosive 11790 | . . . 929 . 283 . . . . . 3066 . . . . . . . . . 1857 . 1550 1529 . . . . 1391 105 . 1080 Electromagnetic 130 | . . . . . . . . . . . . . . . . . . 130 . . . . . . . . . . . . . . Impact 735 | . . 167 568 . . . . . . . . . . . . . . . . . . . . . . . . . . . . . Slashing 315 | . . . . . . . 60 . . . . . . . . . . . . . 58 . 50 147 . . . . . . . . Piercing 2239 | . . . . . . . . . . . . . . . . . . . . . . . . . . . . . 86 . . 2153 Entropic 388 | . . . . . . . . . . . . . . . . . . . . . . . . 388 . . . . . . . . Phasic 792 | . . . . . . . . . . . 33 33 . 627 99 . . . . . . . . . . . . . . . . . Highest Corruption 18 | . . . 4 . . . 1 1 1 5 5 5 . . 6 6 8 7 7 7 7 . . 18 18 . 1 16 . . 2 16 Average Corruption 6 | . . . 4 . . . 1 1 1 5 5 5 . . 6 6 6 2 7 7 7 . . 13 18 . 1 5 . . 1 6 Corruption Purged 1 | . . . . . . . . . 1 . . . . . . . . . . . . . . . . . . . . . . . Corruption Blocked . | . . . . . . . . . . . . . . . . . . . . . . . . . . . . . . . . . Effects 337 | . . . 3 . . . 2 2 2 39 30 6 . . 17 2 7 9 40 14 2 . . 58 40 . 6 43 . . . 15 Message Errors 83 | . . . . . . . . . . 9 8 1 . . 2 . 4 1 13 4 1 . . 12 11 . 2 11 . . . 4 Matter Fused 75 | . . . 2 . . . . . . 12 6 1 . . 7 1 . 3 7 4 . . . 12 10 . 1 8 . . . 1 Heat Flow Errors 34 | . . . . . . . . 1 1 5 2 1 . . 2 . 1 . 2 2 . . . 6 3 . 1 6 . . . 1 Energy Discharges 33 | . . . 1 . . . . . 1 6 . . . . 2 . 1 1 4 1 . . . 6 4 . 1 3 . . . 2 Parts Rejected 4 | . . . . . . . . . . . . 1 . . . . . . . . . . . . . . . 2 . . . 1 Parts Fused 6 | . . . . . . . . . . . 1 . . . . . . . 1 . . . . 2 1 . . 1 . . . . Data Loss (minor) 47 | . . . . . . . 1 . . 6 4 . . . 1 . 1 4 7 3 1 . . 6 4 . 1 4 . . . 4 Data Loss (major) 16 | . . . . . . . . . . . 4 1 . . 2 . . . 1 . . . . 3 3 . . 1 . . . 1 Misfires 18 | . . . . . . . . 1 . . 2 . . . 1 1 . . 3 . . . . 4 3 . . 3 . . . . Alerts 9 | . . . . . . . 1 . . 1 2 . . . . . . . 1 . . . . . 1 . . 3 . . . . Weapon Failures 12 | . . . . . . . . . . . 1 1 . . . . . . 1 . . . . 7 . . . 1 . . . 1 Overload Shots 3 | . . . . . . . . . . . . . . . . . . 1 . . . . . . . . . . . . . 2 Overflow Damage 3787 | . . 56 145 3 . . 17 . . . 161 . . 23 5 . 20 140 45 . 116 . 57 561 . 73 21 863 870 86 281 244 Projectiles 2723 | . . . . . . . 12 . . . 72 . . 23 5 . 20 136 45 . 64 . 20 431 . 73 21 825 539 86 281 70 Explosions 614 | . . . . . . . 5 . . . 89 . . . . . . . . . 52 . 7 130 . . . 38 229 . . 64 Melee 450 | . . 56 145 3 . . . . . . . . . . . . . 4 . . . . 30 . . . . . 102 . . 110 Knockbacks 5 | . . . 2 . . . . . . . . . . . . . . 2 . . . . . . . . . . . . . 1 Impact 5 | . . . 2 . . . . . . . . . . . . . . 2 . . . . . . . . . . . . . 1 Kinetic . | . . . . . . . . . . . . . . . . . . . . . . . . . . . . . . . . . Secondary . | . . . . . . . . . . . . . . . . . . . . . . . . . . . . . . . . . Self-Inflicted Damage 795 | . . . . . 8 . 122 . . . . . . . . . . 10 . . . . . 45 . . . 508 . 72 . 30 Shots 14 | . . . . . 1 . 2 . . . . . . . . . . 1 . . . . . 1 . . . 7 . 1 . 1 Rammed 27 | . . . . 7 4 . 2 . . . . . . . . . 1 13 . . . . . . . . . . . . . . Targets Rammed 45 | . . . . 10 5 . 2 . . . . . . . . . 2 14 2 . . . 6 . . . . . . . . 4 Kicked 12 | . . . . . . . . . . . . . . . . . . . 2 . . . 6 . . . . . . . . 4 Crushed 6 | . . . . 3 1 . . . . . . . . . . . 1 1 . . . . . . . . . . . . . . Highest Temperature 411 | . 100 8 284 375 281 50 307 284 192 216 263 174 . 164 248 20 241 371 240 146 . . . 202 165 335 140 210 198 411 18 274 Average Temperature 87 | . 31 4 153 107 56 26 75 112 68 82 105 104 . 58 102 17 69 149 105 88 . . . 54 81 98 73 72 63 157 7 67 Received Heat Transfer 4897 | . 90 84 372 414 621 6 261 288 . . 379 9 . 56 . . 243 944 63 9 9 . 78 248 . 415 30 105 16 45 . 112 Effects 15 | . . . . 6 . . . . . . . . . . . . 3 5 . . . . . . . . . . . 1 . . Energy Bleed 1 | . . . . 1 . . . . . . . . . . . . . . . . . . . . . . . . . . . . Interference 9 | . . . . 3 . . . . . . . . . . . . 3 3 . . . . . . . . . . . . . . Matter Decay 1 | . . . . 1 . . . . . . . . . . . . . . . . . . . . . . . . . . . . Short Circuit 2 | . . . . 1 . . . . . . . . . . . . . 1 . . . . . . . . . . . . . . Damage (minor) 2 | . . . . . . . . . . . . . . . . . . 1 . . . . . . . . . . . 1 . . Siege Activations . | . . . . . . . . . . . . . . . . . . . . . . . . . . . . . . . . . Martial Activations . | . . . . . . . . . . . . . . . . . . . . . . . . . . . . . . . . . Shielding Activations . | . . . . . . . . . . . . . . . . . . . . . . . . . . . . . . . . . Robots Disrupted . | . . . . . . . . . . . . . . . . . . . . . . . . . . . . . . . . . Combat Hostiles . | . . . . . . . . . . . . . . . . . . . . . . . . . . . . . . . . . Robots Corrupted 7 | . . 2 3 1 . . . . . . . . . . . . . . . . . . 1 . . . . . . . . . Combat Hostiles 4 | . . 1 3 . . . . . . . . . . . . . . . . . . . . . . . . . . . . . Parts Fried 13 | . . 1 2 4 . . . . . . . . . 1 . . . . . . 3 . 2 . . . . . . . . . Impact Corruptions 15 | . . 3 7 1 . . . . . . . . . . . . . 1 . . . . 3 . . . . . . . . . Robots Melted 25 | . . . . . . . . . . . 2 . . . . . 1 2 . . . . . . . 2 3 1 4 5 2 3 Combat Hostiles 22 | . . . . . . . . . . . 2 . . . . . 1 2 . . . . . . . . 2 1 4 5 2 3 Parts Melted 90 | . 2 . . . 2 2 12 3 1 . 3 . . 1 . . 1 8 5 . . . . 4 . 3 1 4 8 10 8 12 Heat Transferred 31875 | . 775 . . 37 . 37 3250 1450 225 . 248 . . 672 440 . 720 3161 525 350 461 . 175 4046 . 990 1309 7543 1830 1795 725 1111 Parts Sabotaged 2 | . . . . . . . . . . . . . . . . . . . . . . . . 2 . . . . . . . . Parts Stolen . | . . . . . . . . . . . . . . . . . . . . . . . . . . . . . . . . . Parts Stripped . | . . . . . . . . . . . . . . . . . . . . . . . . . . . . . . . . . Power Chain Reactions . | . . . . . . . . . . . . . . . . . . . . . . . . . . . . . . . . . Alert | -11 -10 -10 -10 -8 -8 -8 -6 -6 -6 -6 -6 -5 -5 -5 -5 -5 -5 -4 -4 -4 -4 -3 -3 -3 -3 -2 -2 -2 -1 -1 -1 -1 ------- Run | Yrd Mat Min Sub Mat Sto Rec Fac Low Low Zio Dee Pro Fac Ext Cet Arc Hub Fac Upp Upp War Pro Res Arm Lab Res Qua Frg Acc Gar Acc Com Maximum Alert Level 5 | . . . . 1 3 1 2 . . . . . . 1 1 2 3 2 . . . . 1 3 . . . 2 3 5 4 4 Low Security (%) 48 | 100 100 100 . 76 43 58 37 . . . . . 100 66 48 65 34 . . . . . 40 27 . 100 100 21 . . . . Level 1 23 | . . . . 23 5 41 28 . . . . . . 33 51 8 17 34 . . . . 59 25 . . . 41 59 . . . Level 2 16 | . . . . . 16 . 33 . . . . . . . . 25 28 65 . . . . . 26 . . . 37 29 21 . . Level 3 8 | . . . . . 34 . . . . . . . . . . . 19 . . . . . . 19 . . . . 10 36 19 50 Level 4 3 | . . . . . . . . . . . . . . . . . . . . . . . . . . . . . . 30 80 49 Level 5 . | . . . . . . . . . . . . . . . . . . . . . . . . . . . . . . 11 . . High Security . | . . . . . . . . . . . . . . . . . . . . . . . . . . . . . . . . . Max Security . | . . . . . . . . . . . . . . . . . . . . . . . . . . . . . . . . . Peak Influence 1808 | 5 133 40 . 255 809 321 569 . . . . . 30 264 293 471 815 603 . . . . 319 1030 . 53 185 522 783 1808 1335 1434 Initial 1084 | . . 31 . . 61 301 250 . . . . . . . 136 90 164 370 . . . . . 106 . . . 76 280 620 1084 848 Average 303 | 1 70 5 . 126 403 161 294 . . . . . 5 134 196 204 401 421 . . . . 158 459 . 6 63 342 435 1081 1185 1155 Influence Increases 14550 | 10 416 80 . 528 1394 103 981 140 30 . . 60 42 484 359 431 823 765 285 100 256 . 471 1660 . 192 432 1187 723 1238 411 949 Destroy 0b10 Robot/C 7540 | . 240 60 . 320 780 . 400 120 20 . . . . 220 160 200 340 340 240 80 160 . 140 960 . 100 220 760 500 540 160 480 Destroy 0b10 Robot/NC 405 | 10 15 10 . 55 60 . 15 . . . . . . 25 10 5 20 15 . . 10 . 15 15 . 20 30 40 20 . . 15 Destroy Leader 1346 | . 54 10 . 96 204 . 62 20 10 . . . . 14 . . 70 92 30 20 . . 30 206 . 24 44 104 92 60 40 64 Allied During Kill 1199 | . . . . . 207 . . . . . . . . 24 119 184 219 . . . 11 . . . . . . . . 218 9 208 Successful Hack 259 | . 46 . . 7 14 12 26 . . . . . . 8 . . 19 7 . . . . 27 . . . . 26 18 8 . 41 Select Force Hacks 200 | . 30 . . . 30 90 . . . . . . . . . . 50 . . . . . . . . . . . . . . . Disable Machine 930 | . . . . 15 75 . 150 . . . . . . . . 30 60 15 . . . . 45 180 . . 75 150 30 . 90 15 Anti-Garrison Action 200 | . . . . . . . . . . . . . . . . . . . . . . . 150 . . . . . . 50 . . Destroy Structure 1381 | . 1 . . 5 24 1 48 . . . . . 12 28 70 12 30 56 . . . . 64 224 . 33 48 107 63 347 97 111 Advance Influence 250 | . . . . . . . 250 . . . . . . . . . . . . . . . . . . . . . . . . . Partial Spotted 75 | . . . . . . . . . . . . . 30 15 . . . 15 . . . . . 15 . . . . . . . . Lose Combat Pursuer 765 | . 30 . . 30 . . 30 . . . . 60 . 150 . . 15 225 15 . 75 . . 60 . 15 15 . . 15 15 15 Influence Decreases 13739 | 10 336 160 . 381 768 876 456 375 270 50 . 60 42 240 376 187 537 919 668 320 148 108 268 839 1024 192 296 856 415 205 894 1463 Entered New Map 4945 | . . 49 . . 86 472 . 195 56 50 . . . . 108 137 307 387 224 42 . 108 . 97 1024 . . 60 187 155 724 477 Time Decay 6798 | 10 336 111 . 361 412 404 446 140 214 . . 50 42 180 238 30 120 392 404 258 92 . 258 562 . 192 296 656 198 . 150 246 Lost Part 990 | . . . . 20 50 . 10 40 . . . 10 . 40 10 . 30 140 40 20 10 . 10 180 . . . 140 30 10 . 200 Lost Ally 1006 | . . . . . 220 . . . . . . . . 20 20 20 80 . . . 46 . . . . . . . . 40 20 540 Squads Dispatched 72 | . 2 1 . 5 9 . 4 . . . . . . . . . 5 13 . . . . 6 10 . 2 4 5 4 . 1 1 Investigation 15 | . 1 . . 1 3 . 1 . . . . . . . . . 2 1 . . . . 4 . . 1 1 . . . . . Extermination 16 | . . . . . . . 1 . . . . . . . . . . 1 . . . . . 5 . . 2 4 1 . 1 1 Reinforcement 21 | . 1 . . 1 2 . 2 . . . . . . . . . 2 2 . . . . 2 5 . 1 1 1 1 . . . Assault 5 | . . 1 . . 1 . . . . . . . . . . . . 3 . . . . . . . . . . . . . . Garrison 15 | . . . . 3 3 . . . . . . . . . . . 1 6 . . . . . . . . . . 2 . . . Intercept . | . . . . . . . . . . . . . . . . . . . . . . . . . . . . . . . . . Searches Triggered . | . . . . . . . . . . . . . . . . . . . . . . . . . . . . . . . . . Construction Impeded 5 | . . . . . . . . . . . . . . . . . 1 1 . . . . . . . . 1 1 1 . . . Haulers Reinforced 1 | . . . . . . . . . . . . . . . . . . 1 . . . . . . . . . . . . . . Active Scanning Responses . | . . . . . . . . . . . . . . . . . . . . . . . . . . . . . . . . . Cargo Convoy Interrupts 1 | . . . . . . . . . . . . . . . . . . 1 . . . . . . . . . . . . . . Stealth | -11 -10 -10 -10 -8 -8 -8 -6 -6 -6 -6 -6 -5 -5 -5 -5 -5 -5 -4 -4 -4 -4 -3 -3 -3 -3 -2 -2 -2 -1 -1 -1 -1 --------- Run | Yrd Mat Min Sub Mat Sto Rec Fac Low Low Zio Dee Pro Fac Ext Cet Arc Hub Fac Upp Upp War Pro Res Arm Lab Res Qua Frg Acc Gar Acc Com Distress Signals 41 | . 1 . . 3 5 1 1 . . . . . . . 2 . 2 3 . . 4 . 4 . . 8 1 . 1 . 2 3 Communications Jammed . | . . . . . . . . . . . . . . . . . . . . . . . . . . . . . . . . . Distress Signals . | . . . . . . . . . . . . . . . . . . . . . . . . . . . . . . . . . Times Spotted 608 | . 24 3 9 30 48 10 26 6 . . 64 5 . 22 10 1 24 46 15 4 17 . 27 67 . 27 14 42 19 21 7 20 Peak Tracking Total 37 | . 3 2 2 5 7 3 7 3 . . 37 4 . 7 5 4 7 12 7 2 16 . 6 11 . 8 4 7 6 6 3 4 Tactical Retreats 36 | . 1 . . 2 . 5 1 . . . 2 2 . 3 . . 1 7 1 . 4 . . 2 . 1 1 . . 1 1 1 Traps | -11 -10 -10 -10 -8 -8 -8 -6 -6 -6 -6 -6 -5 -5 -5 -5 -5 -5 -4 -4 -4 -4 -3 -3 -3 -3 -2 -2 -2 -1 -1 -1 -1 ------- Run | Yrd Mat Min Sub Mat Sto Rec Fac Low Low Zio Dee Pro Fac Ext Cet Arc Hub Fac Upp Upp War Pro Res Arm Lab Res Qua Frg Acc Gar Acc Com Traps Triggered 21 | . . . . 4 2 . . . . . . . . 1 . . . . . . . . 1 2 . . 1 7 1 2 . . Indirectly . | . . . . . . . . . . . . . . . . . . . . . . . . . . . . . . . . . Trap Hack Attempts . | . . . . . . . . . . . . . . . . . . . . . . . . . . . . . . . . . Triggered . | . . . . . . . . . . . . . . . . . . . . . . . . . . . . . . . . . Disarmed . | . . . . . . . . . . . . . . . . . . . . . . . . . . . . . . . . . Reprogrammed . | . . . . . . . . . . . . . . . . . . . . . . . . . . . . . . . . . Reused . | . . . . . . . . . . . . . . . . . . . . . . . . . . . . . . . . . Traps Extracted . | . . . . . . . . . . . . . . . . . . . . . . . . . . . . . . . . . Installed . | . . . . . . . . . . . . . . . . . . . . . . . . . . . . . . . . . Triggered . | . . . . . . . . . . . . . . . . . . . . . . . . . . . . . . . . . Most Traps Carried 1 | . . 1 1 1 . . . . . . . . . . . . . . . . . . . . . . . . . . . . Machines | -11 -10 -10 -10 -8 -8 -8 -6 -6 -6 -6 -6 -5 -5 -5 -5 -5 -5 -4 -4 -4 -4 -3 -3 -3 -3 -2 -2 -2 -1 -1 -1 -1 ---------- Run | Yrd Mat Min Sub Mat Sto Rec Fac Low Low Zio Dee Pro Fac Ext Cet Arc Hub Fac Upp Upp War Pro Res Arm Lab Res Qua Frg Acc Gar Acc Com Machines Disabled 80 | . . . 1 1 5 . 10 . . 3 2 . . 2 . 2 4 1 . 2 1 . 4 12 1 . 5 13 2 2 6 1 Max in Single Turn 4 | . . . 1 1 1 . 4 . . 1 . . . 1 . 1 1 1 . 1 1 . 2 1 1 . 1 1 1 2 2 1 Garrison Access 6 | . . . . . . . . . . . . . 1 . . . . 1 . . . . 1 . . 2 . 1 . . . . Phase Generator 1 | . . . . . . . . . . . . . . . . . . . . . . . . . . . . . . 1 . . Network Hub 1 | . . . . . . . . . . . . . . . . . 1 . . . . . . . . . . . . . . . Machines Repaired . | . . . . . . . . . . . . . . . . . . . . . . . . . . . . . . . . . Machines Dismantled . | . . . . . . . . . . . . . . . . . . . . . . . . . . . . . . . . . Machines Sabotaged 1 | . . . . . . . . . . . . . . . . . 1 . . . . . . . . . . . . . . . Overloaded Fab Kills . | . . . . . . . . . . . . . . . . . . . . . . . . . . . . . . . . . Hacking | -11 -10 -10 -10 -8 -8 -8 -6 -6 -6 -6 -6 -5 -5 -5 -5 -5 -5 -4 -4 -4 -4 -3 -3 -3 -3 -2 -2 -2 -1 -1 -1 -1 --------- Run | Yrd Mat Min Sub Mat Sto Rec Fac Low Low Zio Dee Pro Fac Ext Cet Arc Hub Fac Upp Upp War Pro Res Arm Lab Res Qua Frg Acc Gar Acc Com Machines Accessed 78 | . 8 . 1 5 5 11 3 . 1 1 . . 2 6 . 1 7 2 . . 1 . 4 3 . . 3 6 1 3 . 4 Terminals 49 | . 7 . . 3 4 5 1 . . . . . . 6 . . 7 2 . . . . 1 1 . . 1 4 . 3 . 4 Fabricators 2 | . . . . . . . . . . . . . 1 . . . . . . . . . . 1 . . . . . . . . Repair Stations 1 | . . . . 1 . . . . . . . . . . . . . . . . . . . . . . . . . . . . Recycling Units 11 | . 1 . . . 1 6 1 . . . . . . . . . . . . . . . 1 1 . . . . . . . . Scanalyzers 6 | . . . . 1 . . 1 . . . . . . . . . . . . . . . 1 . . . 2 1 . . . . Garrison Access 4 | . . . . . . . . . . . . . 1 . . . . . . . . . 1 . . . . 1 1 . . . Total Hacks 179 | . 18 . 1 19 13 23 9 . 1 4 . . 3 9 . 3 17 6 . . 1 . 10 4 . . 11 11 2 5 . 9 Successful 97 | . 8 . 1 11 5 16 6 . 1 4 . . 2 6 . 3 7 1 . . 1 . 4 1 . . 5 5 1 4 . 5 Failed 80 | . 10 . . 8 8 7 2 . . . . . 1 3 . . 10 5 . . . . 6 3 . . 5 6 1 1 . 4 Catastrophic 17 | . 2 . . 2 1 1 . . . . . . . . . . 3 4 . . . . 2 1 . . . . . . . 1 Database Lockouts 2 | . . . . . . . 1 . . . . . . . . . . . . . . . . . . . 1 . . . . . Manual 74 | . 16 . . 12 2 11 2 . . 1 . . . 3 1 . 10 4 . . . . . 1 . . 2 4 . 2 . 3 Terminals 111 | . 16 . . 11 9 9 4 . . . . . . 9 . . 17 6 . . . . 4 2 . . 2 8 . 5 . 9 Fabricators 3 | . . . . . . . . . . . . . 2 . . . . . . . . . . 1 . . . . . . . . Repair Stations 2 | . . . . 2 . . . . . . . . . . . . . . . . . . . . . . . . . . . . Recycling Units 26 | . 2 . . . 4 14 2 . . . . . . . . . . . . . . . 3 1 . . . . . . . . Scanalyzers 21 | . . . . 6 . . 3 . . . . . . . . . . . . . . . 2 . . . 9 1 . . . . Garrison Access 6 | . . . . . . . . . . . . . 1 . . . . . . . . . 1 . . . . 2 2 . . . Terminal Hacks 38 | . . . 1 2 3 1 2 . 1 4 . . . 4 . 3 4 1 . . 1 . 1 . . . . 2 . 4 . 4 Record 3 | . . . . . . . . . . . . . . . . 3 . . . . . . . . . . . . . . . . Part Schematic 4 | . . . . . . . . . . 4 . . . . . . . . . . . . . . . . . . . . . . Prototype ID Bank 1 | . . . . . . 1 . . . . . . . . . . . . . . . . . . . . . . . . . . Open Door 10 | . . . . . 3 . . . 1 . . . . 3 . . . . . . 1 . . . . . . . . 1 . 1 Level Access Points 1 | . . . . . . . . . . . . . . . . . 1 . . . . . . . . . . . . . . . Branch Access Points 3 | . . . . 1 . . . . . . . . . . . . . 1 . . . . 1 . . . . . . . . . Emergency Access Points 1 | . . . . . . . . . . . . . . . . . . . . . . . . . . . . . . 1 . . Terminal Index 2 | . . . . . . . . . . . . . . . . . 1 . . . . . . . . . . . . . . 1 Alert Level 2 | . . . . . . . . . . . . . . . . . 2 . . . . . . . . . . . . . . . Registered Components 2 | . . . . . . . 1 . . . . . . . . . . . . . . . . . . . . . . . . 1 Zone Layout 4 | . . . . 1 . . 1 . . . . . . 1 . . . . . . . . . . . . . 1 . . . . Garrison Registry 1 | . . . . . . . . . . . . . . . . . . . . . . . . . . . . . . 1 . . Patrol Navigation 1 | . . . . . . . . . . . . . . . . . . . . . . . . . . . . . . 1 . . Proto ID Catalog 2 | . . . 1 . . . . . . . . . . . . . . . . . . . . . . . . 1 . . . . Disengage Seal 1 | . . . . . . . . . . . . . . . . . . . . . . . . . . . . . . . . 1 Fabricator Hacks 1 | . . . . . . . . . . . . . 1 . . . . . . . . . . . . . . . . . . . Network Status 1 | . . . . . . . . . . . . . 1 . . . . . . . . . . . . . . . . . . . Repair Station Hacks 2 | . . . . 2 . . . . . . . . . . . . . . . . . . . . . . . . . . . . Scan Component 1 | . . . . 1 . . . . . . . . . . . . . . . . . . . . . . . . . . . . Repair 1 | . . . . 1 . . . . . . . . . . . . . . . . . . . . . . . . . . . . Recycling Unit Hacks 12 | . 1 . . . 1 6 2 . . . . . . . . . . . . . . . 1 1 . . . . . . . . Report Inventory 11 | . 1 . . . 1 6 1 . . . . . . . . . . . . . . . 1 1 . . . . . . . . Retrieve Components 1 | . . . . . . . 1 . . . . . . . . . . . . . . . . . . . . . . . . . Scanalyzer 13 | . . . . 5 . . 1 . . . . . . . . . . . . . . . 2 . . . 5 . . . . . Retrieve Study 13 | . . . . 5 . . 1 . . . . . . . . . . . . . . . 2 . . . 5 . . . . . Garrison Access Hacks 3 | . . . . . . . . . . . . . 1 . . . . . . . . . . . . . . 1 1 . . . Unlock Access 1 | . . . . . . . . . . . . . . . . . . . . . . . . . . . . . 1 . . . Seal Access 2 | . . . . . . . . . . . . . 1 . . . . . . . . . . . . . . 1 . . . . Unauthorized Hacks 28 | . 7 . . 2 1 9 1 . . . . . . 2 . . 3 . . . . . . . . . . 2 . . . 1 Terminals 23 | . 6 . . 2 . 6 1 . . . . . . 2 . . 3 . . . . . . . . . . 2 . . . 1 Track 1 | . . . . . . . . . . . . . . . . . . . . . . . . . . . . 1 . . . . Botnet 10 | . . . . 2 . 1 1 . . . . . . 2 . . 2 . . . . . . . . . . 1 . . . 1 Skim 11 | . 6 . . . . 5 . . . . . . . . . . . . . . . . . . . . . . . . . . Sabotage 1 | . . . . . . . . . . . . . . . . . 1 . . . . . . . . . . . . . . . Fabricators . | . . . . . . . . . . . . . . . . . . . . . . . . . . . . . . . . . Repair Stations . | . . . . . . . . . . . . . . . . . . . . . . . . . . . . . . . . . Recycling Units 5 | . 1 . . . 1 3 . . . . . . . . . . . . . . . . . . . . . . . . . . Tunnel 5 | . 1 . . . 1 3 . . . . . . . . . . . . . . . . . . . . . . . . . . Scanalyzers . | . . . . . . . . . . . . . . . . . . . . . . . . . . . . . . . . . Garrison Access . | . . . . . . . . . . . . . . . . . . . . . . . . . . . . . . . . . Data Cores Recovered 4 | . . . . . . . . . . . . . . 2 . . . . . . . . 1 . . . . 1 . . . . Used . | . . . . . . . . . . . . . . . . . . . . . . . . . . . . . . . . . Hacking Detections 50 | . 7 . . 4 3 4 3 . . . . . 1 3 1 . 7 1 . . . . 3 2 . . 2 5 1 1 . 2 Full Trace Events 11 | . 1 . . 1 2 2 1 . . . . . . . . . 1 1 . . . . 2 . . . . . . . . . Feedback Events . | . . . . . . . . . . . . . . . . . . . . . . . . . . . . . . . . . Feedback Blocked . | . . . . . . . . . . . . . . . . . . . . . . . . . . . . . . . . . Robot Schematics Acquired 3 | . . . . . . . . . . 3 . . . . . . . . . . . . . . . . . . . . . . Robots Built . | . . . . . . . . . . . . . . . . . . . . . . . . . . . . . . . . . Authchips . | . . . . . . . . . . . . . . . . . . . . . . . . . . . . . . . . . Time . | . . . . . . . . . . . . . . . . . . . . . . . . . . . . . . . . . Total Robot Build Rating . | . . . . . . . . . . . . . . . . . . . . . . . . . . . . . . . . . Part Schematics Acquired 19 | . . . . . . . . . . 19 . . . . . . . . . . . . . . . . . . . . . . Parts Built . | . . . . . . . . . . . . . . . . . . . . . . . . . . . . . . . . . Authchips . | . . . . . . . . . . . . . . . . . . . . . . . . . . . . . . . . . Time . | . . . . . . . . . . . . . . . . . . . . . . . . . . . . . . . . . Total Part Build Rating . | . . . . . . . . . . . . . . . . . . . . . . . . . . . . . . . . . Part Studies Acquired 13 | . . . . 5 . . 1 . . . . . . . . . . . . . . . 2 . . . 5 . . . . . Parts Repaired 1 | . . . . 1 . . . . . . . . . . . . . . . . . . . . . . . . . . . . Time 26 | . . . . 26 . . . . . . . . . . . . . . . . . . . . . . . . . . . . Parts Recycled . | . . . . . . . . . . . . . . . . . . . . . . . . . . . . . . . . . Recycled Matter . | . . . . . . . . . . . . . . . . . . . . . . . . . . . . . . . . . Retrieved Matter . | . . . . . . . . . . . . . . . . . . . . . . . . . . . . . . . . . Retrieved Components 1 | . . . . . . . 1 . . . . . . . . . . . . . . . . . . . . . . . . . Parts Scanalyzed . | . . . . . . . . . . . . . . . . . . . . . . . . . . . . . . . . . Part Schematics Acquired . | . . . . . . . . . . . . . . . . . . . . . . . . . . . . . . . . . Parts Damaged . | . . . . . . . . . . . . . . . . . . . . . . . . . . . . . . . . . Bothacking | -11 -10 -10 -10 -8 -8 -8 -6 -6 -6 -6 -6 -5 -5 -5 -5 -5 -5 -4 -4 -4 -4 -3 -3 -3 -3 -2 -2 -2 -1 -1 -1 -1 ------------ Run | Yrd Mat Min Sub Mat Sto Rec Fac Low Low Zio Dee Pro Fac Ext Cet Arc Hub Fac Upp Upp War Pro Res Arm Lab Res Qua Frg Acc Gar Acc Com Used RIF Installer . | . . . . . . . . . . . . . . . . . . . . . . . . . . . . . . . . . Robots Hacked . | . . . . . . . . . . . . . . . . . . . . . . . . . . . . . . . . . Non-combat . | . . . . . . . . . . . . . . . . . . . . . . . . . . . . . . . . . Combat . | . . . . . . . . . . . . . . . . . . . . . . . . . . . . . . . . . Robot Hacks Applied . | . . . . . . . . . . . . . . . . . . . . . . . . . . . . . . . . . Relay Couplers Released 8 | . . . . . . . . . . . . . . . . . . 1 . . . . 1 . . 3 . 3 . . . . Machine Destruction 8 | . . . . . . . . . . . . . . . . . . 1 . . . . 1 . . 3 . 3 . . . . Fabnet Peak Effective % . | . . . . . . . . . . . . . . . . . . . . . . . . . . . . . . . . . Robots Rewired 11 | . . . . . . . . . . . . . . 4 . . . . . . 5 . . . . . . . . 2 . . Allies Hacked 1 | . . . . . . . . . . . . . . . . . . . . . . . . . . . . . . . 1 . Hacks Repelled . | . . . . . . . . . . . . . . . . . . . . . . . . . . . . . . . . . Allies | -11 -10 -10 -10 -8 -8 -8 -6 -6 -6 -6 -6 -5 -5 -5 -5 -5 -5 -4 -4 -4 -4 -3 -3 -3 -3 -2 -2 -2 -1 -1 -1 -1 -------- Run | Yrd Mat Min Sub Mat Sto Rec Fac Low Low Zio Dee Pro Fac Ext Cet Arc Hub Fac Upp Upp War Pro Res Arm Lab Res Qua Frg Acc Gar Acc Com Total Allies 74 | . . 1 . . 10 . . . . 5 . . . 6 5 . . . . . 5 . . . . . . . . 4 . 38 Largest Group 18 | . . 1 . . 10 . . . . 5 5 . . 5 9 8 4 . . . 5 . . . . . . . . 4 1 18 Highest-Rated Group 736 | . . 31 . . 173 . . . . 269 269 . . 287 736 567 315 . . . 282 . . . . . . . . 257 80 479 Highest-Rated Ally 234 | . . 31 . . 29 . . . . 96 96 . . 159 153 96 96 . . . 64 . . . . . . . . 80 80 234 Initial Warlord ECA Mod 1 | . . . . . . . . . . . . . . . . . . . . . . . . . . . . . . . 1 1 Total Orders 1 | . . . . . 1 . . . . . . . . . . . . . . . . . . . . . . . . . . . EXPLORE 1 | . . . . . 1 . . . . . . . . . . . . . . . . . . . . . . . . . . . Ally Attacks 621 | . . 6 . . 99 . . . . . 141 . . 22 51 29 52 . . . 14 . . . . . . . . 60 5 142 Total Damage 15154 | . . 84 . . 1147 . . . . . 3365 . . 686 2007 1003 1611 . . . 773 . . . . . . . . 1857 107 2514 Kills 100 | . . . . . 17 . . . . . 22 . . 4 10 13 13 . . . 1 . . . . . . . . 9 . 11 Allies Corrupted 9 | . . . . . . . . . . . . . . . . . 1 . . . . . . . . . . . . . . 8 Allies Melted 3 | . . . . . . . . . . . . . . . . . . . . . 3 . . . . . . . . . . . Intel | -11 -10 -10 -10 -8 -8 -8 -6 -6 -6 -6 -6 -5 -5 -5 -5 -5 -5 -4 -4 -4 -4 -3 -3 -3 -3 -2 -2 -2 -1 -1 -1 -1 ------- Run | Yrd Mat Min Sub Mat Sto Rec Fac Low Low Zio Dee Pro Fac Ext Cet Arc Hub Fac Upp Upp War Pro Res Arm Lab Res Qua Frg Acc Gar Acc Com Active Infowar (turns) 19853 | 16 1013 897 211 636 540 . 904 247 451 1585 417 146 240 393 519 79 240 929 967 598 1236 187 1100 765 13 723 684 2441 406 465 306 499 Optics 4873 | . . . . . . . . . . . . . . . . . . . . . . . . . . 715 684 2441 406 465 162 . Sensors 1525 | . . . . . . . 534 247 373 227 103 . . . . . . . . . . . . . . . 41 . . . . . Structural 2817 | . . . 203 . . . 820 158 278 1358 . . . . . . . . . . . . . . . . . . . . . . Seismic 3110 | 16 1013 897 8 636 540 . . . . . . . . . . . . . . . . . . . . . . . . . . . Decoding 7535 | . . . . . . . . . . . 314 146 240 393 519 79 240 929 967 598 1236 187 1100 587 . . . . . . . . T.N.C. 1498 | . . . . . . . . . . . . . . . . . . . . . . . . . . . . . 228 465 306 499 Cloaking 1502 | . . . . . . . . . . . . . . . . . . . . . 129 . . 713 13 8 67 572 . . . . ECM 1 | . . . . . . . . . . . . . . . . . . . . . . . . 1 . . . . . . . . Robot Analysis Total . | . . . . . . . . . . . . . . . . . . . . . . . . . . . . . . . . . Derelict Logs Recovered 13 | . . 1 2 . . . . . 3 2 . 2 . . . . . . 1 2 . . . . . . . . . . . . Drone Launches 8 | . . . . . 8 . . . . . . . . . . . . . . . . . . . . . . . . . . . Drone Recoveries . | . . . . . . . . . . . . . . . . . . . . . . . . . . . . . . . . . Decoded 0b10 Intel 108 | . . . . . . . . . . . . . 8 10 5 3 9 27 . . . . 29 17 . . . . . . . . Traps 8 | . . . . . . . . . . . . . . 2 . . 1 . . . . . 3 2 . . . . . . . . Emergency Access 9 | . . . . . . . . . . . . . . 2 . . 1 1 . . . . 4 1 . . . . . . . . Items 56 | . . . . . . . . . . . . . 8 3 . 1 5 17 . . . . 13 9 . . . . . . . . Machines 18 | . . . . . . . . . . . . . . 2 3 1 1 5 . . . . 6 . . . . . . . . . Patrols 8 | . . . . . . . . . . . . . . . . . . 3 . . . . 2 3 . . . . . . . . Guards 5 | . . . . . . . . . . . . . . . . . 1 1 . . . . 1 2 . . . . . . . . Exits 4 | . . . . . . . . . . . . . . 1 2 1 . . . . . . . . . . . . . . . . Exploration | -11 -10 -10 -10 -8 -8 -8 -6 -6 -6 -6 -6 -5 -5 -5 -5 -5 -5 -4 -4 -4 -4 -3 -3 -3 -3 -2 -2 -2 -1 -1 -1 -1 ------------- Run | Yrd Mat Min Sub Mat Sto Rec Fac Low Low Zio Dee Pro Fac Ext Cet Arc Hub Fac Upp Upp War Pro Res Arm Lab Res Qua Frg Acc Gar Acc Com Turns Passed 27960 | 148 1013 897 1419 1074 1314 1007 1119 296 451 2675 1321 146 240 393 519 79 240 929 967 598 1236 187 1100 1661 864 1143 684 2441 406 465 306 622 Spaces Moved 15465 | 68 519 475 1011 527 546 585 515 147 233 1644 1073 278 260 528 210 44 119 355 271 412 790 162 529 737 217 704 417 1054 265 269 213 288 Core 337 | 13 . . . . . . . . . . 140 . . . . . . 171 10 . . . . . . . . . . . . 3 Treads 5489 | 55 519 475 43 314 546 585 515 147 233 1066 476 . . . 168 44 119 184 . . . . . . . . . . . . . . Legs 6315 | . . . . . . . . . . . . . . . . . . . 261 412 790 162 529 737 217 704 417 1054 265 269 213 285 Wheels 1791 | . . . 968 213 . . . . . 578 32 . . . . . . . . . . . . . . . . . . . . . Hover 1533 | . . . . . . . . . . . 425 278 260 528 42 . . . . . . . . . . . . . . . . . Flight . | . . . . . . . . . . . . . . . . . . . . . . . . . . . . . . . . . Fastest Speed 38 | 50 160 160 105 95 145 145 145 152 152 130 48 48 50 38 110 160 160 50 50 135 116 116 116 125 132 132 126 118 114 114 114 80 Average Speed 129 | 148 160 160 117 139 159 145 163 155 156 147 101 49 50 48 151 160 160 110 132 136 133 116 124 140 132 132 127 135 114 115 114 114 Slowest Speed 500 | 160 160 160 240 280 200 145 240 226 212 190 250 52 50 128 160 160 160 500 180 183 183 116 175 185 135 132 132 181 121 179 114 176 Overloaded Moves . | . . . . . . . . . . . . . . . . . . . . . . . . . . . . . . . . . Propulsion Burnouts . | . . . . . . . . . . . . . . . . . . . . . . . . . . . . . . . . . Robots Hopped . | . . . . . . . . . . . . . . . . . . . . . . . . . . . . . . . . . Potential Cave-ins 21 | . . . 1 . . . . . . . . . . . . . . . . . . . . 9 . . . 11 . . . . Cave-ins Triggered 4 | . . . 3 . . . . . . . . . . . . . . . . . . . . 1 . . . . . . . . Teleports 1 | . . . . . . . . . . . . . . . . . . . . . . . . . . . . 1 . . . . Exploration Rate (%) 50 | 5 96 96 59 50 84 95 19 29 39 85 77 55 7 78 57 64 23 14 46 77 93 41 20 48 92 35 55 29 8 51 8 20 Regions Visited 32 Branch Regions 22 Pre-discovered Areas 12 | . 1 . . . 1 5 . . 1 2 . . . . . . . . 1 1 . . . . . . . . . . . . Known Exits Taken 16 | . . 1 1 1 1 . 1 1 1 1 . 1 . . 1 1 1 1 . . . . 1 . 1 . . . 1 . . . Unknown Exits Taken 15 | 1 1 . . . . 1 . . . . 1 . 1 1 . . . . 1 1 1 1 . 1 . 1 1 1 . . 1 . Scrap Searched 20 | . . 2 7 . . . . . 2 3 . 1 . . . . . . . 2 . 3 . . . . . . . . . . Spaces Dug 101 | . . . 8 3 . 1 7 . 1 . . . 5 . . . 1 7 4 . 3 . 11 28 . 4 6 . . . 12 . Terrain Destroyed 806 | . . . 89 3 21 1 74 . 1 . 18 . 6 12 6 . 5 26 19 10 22 . 39 142 3 19 18 36 27 124 39 46 Melee 20 | . . . 8 3 . 1 7 . 1 . . . . . . . . . . . . . . . . . . . . . . . Projectile 389 | . . . . . 1 . 9 . . . 7 . 6 12 6 . 5 26 19 10 7 . 22 96 3 19 18 15 10 47 39 12 AOE 397 | . . . 81 . 20 . 58 . . . 11 . . . . . . . . . 15 . 17 46 . . . 21 17 77 . 34 Terrain Rammed . | . . . . . . . . . . . . . . . . . . . . . . . . . . . . . . . . . Walls Destroyed . | . . . . . . . . . . . . . . . . . . . . . . . . . . . . . . . . . Machines Disabled . | . . . . . . . . . . . . . . . . . . . . . . . . . . . . . . . . . Actions | -11 -10 -10 -10 -8 -8 -8 -6 -6 -6 -6 -6 -5 -5 -5 -5 -5 -5 -4 -4 -4 -4 -3 -3 -3 -3 -2 -2 -2 -1 -1 -1 -1 --------- Run | Yrd Mat Min Sub Mat Sto Rec Fac Low Low Zio Dee Pro Fac Ext Cet Arc Hub Fac Upp Upp War Pro Res Arm Lab Res Qua Frg Acc Gar Acc Com Total 21506 | 95 608 574 1134 757 850 741 640 177 311 1929 1247 283 363 615 381 53 139 765 838 430 942 161 939 1107 800 867 507 1839 327 363 238 486 Wait 3579 | . 25 70 5 39 146 142 7 3 54 143 29 1 94 17 127 10 3 293 533 4 61 . 366 119 515 71 3 541 15 31 3 109 Move 15432 | 67 518 474 1009 526 545 584 514 146 232 1643 1072 277 259 527 209 43 119 354 270 411 789 161 528 735 216 703 416 1053 264 268 212 288 Hop . | . . . . . . . . . . . . . . . . . . . . . . . . . . . . . . . . . Pick Up 311 | 5 6 5 18 41 7 3 13 1 5 49 30 . 1 2 6 . . 1 2 2 3 . 4 22 18 21 10 25 6 3 . 2 Fast Attach 96 | 7 . . 1 8 6 . 3 . 1 8 9 2 . 2 5 . . 3 2 . 2 . 4 3 2 2 . 11 7 5 1 2 Attach 108 | 1 . . 7 4 4 . 6 4 4 4 11 1 1 1 1 . . 6 . . . . . 12 3 2 1 19 5 1 . 10 Detach 111 | 1 . . . . . . 2 2 3 12 1 . 1 2 2 . . 10 3 . 2 . 7 14 13 4 . 23 4 1 . 4 Swap 298 | . 4 3 18 17 37 4 26 9 5 4 37 1 1 8 3 . . 3 1 1 11 . 1 22 5 12 15 28 2 11 . 9 Drop 282 | . 5 1 12 27 18 5 8 . 3 61 32 . . 5 11 . 1 1 2 3 3 . 3 8 21 8 9 19 3 7 1 5 Fire 1048 | 14 50 5 22 82 75 2 51 12 3 5 26 1 6 25 17 . 15 80 23 9 23 . 20 166 7 44 53 115 20 28 20 29 Melee 98 | . . 16 41 3 3 1 8 . 1 . . . . . . . . . . . . . . . . . . . 1 . . 24 Ram 5 | . . . . . . . . . . . . . . . . . . 5 . . . . . . . . . . . . . . Kick 12 | . . . . . . . . . . . . . . . . . . . 2 . . . 6 . . . . . . . . 4 Crush 27 | . . . . 10 5 . 2 . . . . . . . . . 1 9 . . . . . . . . . . . . . . Escape Stasis 12 | . . . 1 . . . . . . . . . . . . . . . . . . . . 6 . . . 5 . . . . Rewire 83 | . . . . . . . . . . . . . . 26 . . . . . . 48 . . . . . . . . 8 1 . Trap . | . . . . . . . . . . . . . . . . . . . . . . . . . . . . . . . . . Miscellaneous 4 | . . . . . 4 . . . . . . . . . . . . . . . . . . . . . . . . . . . Route ------- -11/Scrapyard -10/Materials (discovered 5 exits: *Mat x3 / [*Min] / Sub) -10/Mines (discovered 4 exits: *Mat x2 / [*Exi] / *Sub) -10/Subcaves (discovered 4 exits: *Mat x2 / Rec / [Scr]) -8/Materials (discovered 2 exits: *Sto x2) -8/Storage (discovered 2 exits: [*Fac] / *Rec) -8/Recycling -6/Factory (discovered 5 exits: Fac x3 / *Low x2) -6/Lower Caves -6/Lower Caves -6/Zion (discovered 2 exits: *Dee / [*Pro]) -6/Deep Caves -5/Proximity Caves -5/Factory (discovered 2 exits: Fac / *Ext) -5/Extension (discovered 3 exits: *Fac x2 / *Cet) -5/Cetus (discovered 2 exits: *Fac / *Arc) -5/Archives (discovered 2 exits: *Hub x2) -5/Hub_04(d) (discovered 4 exits: *Fac x4) -4/Factory (discovered 2 exits: *Upp x2) -4/Upper Caves -4/Upper Caves -4/Warlord -3/Proximity Caves -3/Research (discovered 4 exits: *Res / *Arm / Tes x2) -3/Armory (discovered 2 exits: *Res / [*Lab]) -3/Lab -2/Research (discovered 2 exits: *Qua x2) -2/Quarantine (discovered 3 exits: *Acc / [*Sec] / *Frg) -2/Protoforge -1/Access -1/Garrison (discovered 3 exits: [*Acc x3]) -1/Access -1/Command History --------- Turn | Location | Event 2 | -11/Scrapyard | Met Revision 17 12 | -11/Scrapyard | Discovered new exit (range 15) 149 | -11/Scrapyard | Entered Materials 310 | -10/Materials | Build established: Mutant 378 | -10/Materials | Discovered new exit (range 16) 560 | -10/Materials | Discovered new exit (range 8) 885 | -10/Materials | Identified exit to Subcaves 929 | -10/Materials | Learned 4 Recycling zone layouts 964 | -10/Materials | Loaded intel: 6 trap records 1006 | -10/Materials | Learned Storage security intel 1013 | -10/Materials | Learned 4 Subcaves zone layouts 1031 | -10/Materials | Identified exit to Materials 1120 | -10/Materials | Discovered new exit (range 12) 1162 | -10/Materials | Entered Mines 1267 | -10/Mines | Met a Derelict testing a Signal Generator 1269 | -10/Mines | Met a Derelict bent on vengeance 1592 | -10/Mines | Excavation squad dispatched 1592 | -10/Mines | A large section of the Mines collapsed 1640 | -10/Mines | Found a hidden stash of uninstalled traps 1658 | -10/Mines | Found DCF Scrap (16 items) 1666 | -10/Mines | Deemed a non-threat by the Exiles lab entrance 1666 | -10/Mines | Discovered new exit (range 5) 1864 | -10/Mines | Discovered exit to Materials (range 4) 2046 | -10/Mines | Discovered exit to Subcaves (range 4) 2059 | -10/Mines | Entered Subcaves 2060 | -10/Subcaves | Approached by a straggling Scientist 2060 | -10/Subcaves | Identified exit to Recycling 2221 | -10/Subcaves | Learned Materials emergency access door positions 2301 | -10/Subcaves | Lost 4 parts (1p2n1u) 2382 | -10/Subcaves | Discovered new exit (range 13) 2397 | -10/Subcaves | Core integrity fell below 50% 2438 | -10/Subcaves | Scientist uncovered a shortcut to Scraptown 2555 | -10/Subcaves | A swath of the cavern ceiling suddenly collapsed 2611 | -10/Subcaves | Identified exit to Materials 2708 | -10/Subcaves | Shifting Twisted Machinery released Spk. Treads 2717 | -10/Subcaves | Shifting Twisted Machinery released Sub. Machine Gun 2778 | -10/Subcaves | Shifting Twisted Machinery released Sub. Beam Cannon 2814 | -10/Subcaves | Shifting Twisted Machinery released Battle Rifle 2821 | -10/Subcaves | Shifting Twisted Machinery released Sub. Monowheel 2968 | -10/Subcaves | A swath of the cavern ceiling suddenly collapsed 3038 | -10/Subcaves | Shifting Twisted Machinery released Sub. Monowheel 3125 | -10/Subcaves | Visited 4L-MR0's lab 3140 | -10/Subcaves | Found Prototype Energy Cannon 3147 | -10/Subcaves | Identified Powered Cannon 3298 | -10/Subcaves | Crushed by falling debris 3302 | -10/Subcaves | Crushed by falling debris 3306 | -10/Subcaves | Crushed by falling debris 3306 | -10/Subcaves | Core integrity fell below 20% 3478 | -10/Subcaves | Entered Materials 3478 | -8/Materials | Evolved 4 slots: Propulsion x2, Utility x2 3479 | -8/Materials | Identified exit to Storage 3669 | -8/Materials | Build established: Derelict-Mutant 4173 | -8/Materials | Build established: Scavenger-Mutant 4189 | -8/Materials | Garrison activated, responded to threat 4394 | -8/Materials | Repaired Hcp. Storage Unit 4552 | -8/Materials | Entered Storage 4710 | -8/Storage | Lost 4 allies 4930 | -8/Storage | Destroyed 7 combat bots 5013 | -8/Storage | Assisted by bots powering up and referring to "LRC-V3" 5115 | -8/Storage | Garrison activated, responded to threat 5227 | -8/Storage | Lost 6 allies 5399 | -8/Storage | Discovered new exit (range 6) 5752 | -8/Storage | First assault squad dispatched 5761 | -8/Storage | Met 01-MTF 5859 | -8/Storage | Discovered exit to Recycling (range 3) 5866 | -8/Storage | Entered Recycling 5866 | -8/Recycling | Accompanied by 1 ally (01-MTF) 5867 | -8/Recycling | Met a Zionite searching for Scraptown 6070 | -8/Recycling | Build established: Mutant 6145 | -8/Recycling | Core integrity fell below 50% 6372 | -8/Recycling | Entered Scraplab 6495 | -8/Recycling | Discovered new exit (range 11) 6627 | -8/Recycling | Learned Factory emergency access door positions 6679 | -8/Recycling | Learned Factory emergency access door positions 6719 | -8/Recycling | Learned location of Extension (-5) 6751 | -8/Recycling | Learned location of 1 exit from Lower Caves 6791 | -8/Recycling | Learned location of 3 exits from Factory 6873 | -8/Recycling | Entered Factory 6873 | -6/Factory | Evolved 4 slots: Power x1, Utility x2, Weapon x1 6874 | -6/Factory | Identified exit to Factory 6875 | -6/Factory | Identified exit to Lower Caves 7512 | -6/Factory | Central database locked down 7992 | -6/Factory | Entered Lower Caves 7993 | -6/Lower Caves | Identified exit to Lower Caves 8288 | -6/Lower Caves | Entered another Lower Caves area 8468 | -6/Lower Caves | Learned Factory non-interactive machine intel 8509 | -6/Lower Caves | Build established: Skirmisher 8618 | -6/Lower Caves | Learned Factory trap positions 8723 | -6/Lower Caves | Discovered new exit (range 11) 8737 | -6/Lower Caves | Identified exit to Zion 8739 | -6/Lower Caves | Entered Zion 8816 | -6/Zion | Discovered new exit (range 15) 8834 | -6/Zion | Build established: Mutant 9253 | -6/Zion | Gained Derelict followers 9298 | -6/Zion | Learned Factory terminal intel 9395 | -6/Zion | Met Imprinter 9562 | -6/Zion | Given A8's code to call for help 9581 | -6/Zion | Learned location of Warlord (-4) 9754 | -6/Zion | Found Prototype Launcher 9754 | -6/Zion | Identified Rocket Array 10998 | -6/Zion | Attached Powered Cannon, gained temporary slot: Power 11297 | -6/Zion | Enhanced Grunt warped into view, answering call for help 11299 | -6/Zion | Enhanced Grunt warped into view, answering call for help 11372 | -6/Zion | Discovered new exit (range 4) 11372 | -6/Zion | Saw the warning signs outside the Deep Caves entrance 11375 | -6/Zion | Identified exit to Deep Caves 11414 | -6/Zion | Entered Deep Caves 11414 | -6/Deep Caves | Accompanied by 5 allies 11483 | -6/Deep Caves | Build established: Skirmisher 11521 | -6/Deep Caves | Z-Facility disabled 11524 | -6/Deep Caves | Attacked by Z-Imprinter 11545 | -6/Deep Caves | Allies destroyed Z-Imprinter 11825 | -6/Deep Caves | Found Prototype Protection 11825 | -6/Deep Caves | Identified Zio. Weapon Casing 11868 | -6/Deep Caves | Build established: Scavenger-Gunner 12186 | -6/Deep Caves | Discovered new exit (range 7) 12298 | -6/Deep Caves | Spotted AG-87218 12301 | -6/Deep Caves | Destroyed AG-87218 12322 | -6/Deep Caves | Triggered Deep Caves wall 12324 | -6/Deep Caves | Exposed GOLEM chamber 12325 | -6/Deep Caves | Found GOLEM Unit 12359 | -6/Deep Caves | Destroyed 35 combat bots 12402 | -6/Deep Caves | Spotted AG-75379 12462 | -6/Deep Caves | Lost 9 parts (1p3n4u1w) 12608 | -6/Deep Caves | Found Zio. Weapon Casing 12735 | -6/Deep Caves | Entered Proximity Caves 12762 | -5/Proximity Caves | Learned Factory interactive machine intel 12814 | -5/Proximity Caves | Attracted the attention of an 0b10 checkpoint 12832 | -5/Proximity Caves | Learned location of 1 exit from Factory 12872 | -5/Proximity Caves | Discovered exit to Factory (range 15) 12881 | -5/Proximity Caves | Entered Factory 12881 | -5/Factory | Evolved 2 slots: Utility x2 12882 | -5/Factory | Identified exit to Factory 12883 | -5/Factory | Loaded intel: 94 trap records 12885 | -5/Factory | Loaded intel: 217 non-interactive machine locations 12886 | -5/Factory | Loaded intel: 52 interactive machine locations 12887 | -5/Factory | Loaded intel: 28 terminal locations 13113 | -5/Factory | Discovered new exit (range 16) 13121 | -5/Factory | Entered Extension 13197 | -5/Extension | Rescued a captive Derelict 13271 | -5/Extension | Rescued A7 13287 | -5/Extension | Spotted B-75 Beast 13300 | -5/Extension | Spotted B-75 Beast 13306 | -5/Extension | Destroyed B-75 Beast 13315 | -5/Extension | Destroyed B-75 Beast 13353 | -5/Extension | Rescued a captive Derelict 13455 | -5/Extension | Discovered exit to Factory (range 10) 13455 | -5/Extension | Discovered new exit (range 6) 13514 | -5/Extension | Entered Cetus 13514 | -5/Cetus | Accompanied by 5 allies (A7) 13519 | -5/Cetus | Acquired a Cetus Manufacturing Module code from A7 13535 | -5/Cetus | Spotted Cetus Guard 13541 | -5/Cetus | Spotted Cetus Guard 13541 | -5/Cetus | Spotted Cetus Guard 13542 | -5/Cetus | Allies destroyed Cetus Guard 13544 | -5/Cetus | Allies destroyed Cetus Guard 13544 | -5/Cetus | Spotted Cetus Guard 13546 | -5/Cetus | Allies destroyed Cetus Guard 13548 | -5/Cetus | Allies destroyed Cetus Guard 13674 | -5/Cetus | Started Cetus Manufacturing Module 13686 | -5/Cetus | Identified exit to Archives 13699 | -5/Cetus | Manufactured an Enhanced Grunt 13724 | -5/Cetus | Manufactured an Enhanced Grunt 13749 | -5/Cetus | Manufactured an Enhanced Grunt 13774 | -5/Cetus | Manufactured an Enhanced Grunt 13799 | -5/Cetus | Manufactured an Enhanced Grunt 13834 | -5/Cetus | Spotted Cetus Guard 13834 | -5/Cetus | Spotted Cetus Guard 13842 | -5/Cetus | Spotted Cetus Guard 13844 | -5/Cetus | Spotted Cetus Guard 13845 | -5/Cetus | Allies destroyed Cetus Guard 13849 | -5/Cetus | Allies destroyed Cetus Guard 13852 | -5/Cetus | Allies destroyed Cetus Guard 13857 | -5/Cetus | Allies destroyed Cetus Guard 13866 | -5/Cetus | Build established: Scavenger-Tank 13875 | -5/Cetus | Met Revision 17 14010 | -5/Cetus | Murdered A7 14013 | -5/Cetus | Extracted ID and sensor layout for unrecognized location from A7's data core 14033 | -5/Cetus | Entered Archives 14033 | -5/Archives | Accompanied by 8 allies 14054 | -5/Archives | Met Zhirov 14060 | -5/Archives | Reinforcements dispatched to Archives 14062 | -5/Archives | Identified exit to Hub_04(d) 14073 | -5/Archives | Read partially decrypted archive contents 14077 | -5/Archives | Discovered exit to Hub_04(d) (range 15) 14105 | -5/Archives | Reinforcements dispatched to Archives 14112 | -5/Archives | Entered Hub_04(d) 14112 | -5/Hub_04(d) | Accompanied by 4 allies 14125 | -5/Hub_04(d) | Lost 4 allies 14289 | -5/Hub_04(d) | Garrison activated, responded to threat 14321 | -5/Hub_04(d) | Network Hub disabled 14323 | -5/Hub_04(d) | Destroyed 7 combat bots 14339 | -5/Hub_04(d) | Spotted Lightning 14345 | -5/Hub_04(d) | Spotted Lightning 14346 | -5/Hub_04(d) | Spotted Lightning 14352 | -5/Hub_04(d) | Entered Factory 14352 | -4/Factory | Evolved 2 slots: Utility x2 14362 | -4/Factory | Lost 3 parts (1p2w) 14571 | -4/Factory | Garrison activated, responded to threat 14852 | -4/Factory | First assault squad dispatched 14888 | -4/Factory | Garrison activated, responded to threat 14998 | -4/Factory | Lost 8 parts (1p2n3u2w) 15168 | -4/Factory | Lost 3 parts (1p1u1w) 15220 | -4/Factory | Identified exit to Upper Caves 15253 | -4/Factory | Spotted B-86 Titan 15254 | -4/Factory | Core integrity fell below 50% 15270 | -4/Factory | Cargo convoy interrupted 15281 | -4/Factory | Entered Upper Caves 15284 | -4/Upper Caves | Encountered a Warlord checkpoint 15481 | -4/Upper Caves | Build established: Mutant 15605 | -4/Upper Caves | Lost 5 allies 15855 | -4/Upper Caves | Build established: Golem 15957 | -4/Upper Caves | Spotted B-86 Titan 16084 | -4/Upper Caves | Attracted the attention of an 0b10 checkpoint 16242 | -4/Upper Caves | Discovered new exit (range 4) 16248 | -4/Upper Caves | Entered another Upper Caves area 16330 | -4/Upper Caves | Encountered a Warlord checkpoint 16343 | -4/Upper Caves | Learned location of 1 exit from Research 16522 | -4/Upper Caves | Acquired the password to a Derelict Tinkerer's latest research 16544 | -4/Upper Caves | Found Prototype Special Weapon 16735 | -4/Upper Caves | Spotted B-86 Titan 16835 | -4/Upper Caves | Discovered new exit (range 9) 16846 | -4/Upper Caves | Entered Warlord 16899 | -4/Warlord | System corruption cleaned by Quarantine Array 17163 | -4/Warlord | Visited the Vortex Lab 17168 | -4/Warlord | Warlord's base attacked by MAIN.C 17168 | -4/Warlord | Found Prototype Energy Gun 17175 | -4/Warlord | Found Prototype Energy Gun 17335 | -4/Warlord | Met Warlord 17518 | -4/Warlord | Warlord forces counterattacked 17609 | -4/Warlord | Found Prototype Reactor 17609 | -4/Warlord | Identified Vortex Chain Reactor 17613 | -4/Warlord | Found Prototype Device 17613 | -4/Warlord | Identified Exp. Cloaking Device 17624 | -4/Warlord | Found Prototype Device 17624 | -4/Warlord | Identified System Purifier 17724 | -4/Warlord | Spotted Executioner 17729 | -4/Warlord | Destroyed Executioner 17735 | -4/Warlord | Spotted B-86 Titan 17735 | -4/Warlord | Spotted B-90 Cyclops 17741 | -4/Warlord | Spotted Striker 17822 | -4/Warlord | Found Prototype Special Weapon 17822 | -4/Warlord | Identified RU-N14's Throwing Claymores v3 17825 | -4/Warlord | Found RU-N14's Throwing Claymores v3 17827 | -4/Warlord | Identified Vortex Rail 17828 | -4/Warlord | Identified Vortex Shotgun 17830 | -4/Warlord | Lost 14 allies 17843 | -4/Warlord | Warlord base infiltrated, sounded retreat 17897 | -4/Warlord | Destroyed Striker 17914 | -4/Warlord | Spotted Striker 17995 | -4/Warlord | Discovered new exit (range 11) 18082 | -4/Warlord | Entered Proximity Caves 18262 | -3/Proximity Caves | Discovered new exit (range 7) 18269 | -3/Proximity Caves | Entered Research 18269 | -3/Research | Evolved 2 slots: Power x1, Utility x1 18270 | -3/Research | Identified exit to Research 18505 | -3/Research | Revision forces began assault on 0b10 18506 | -3/Research | Met up with Revision 17++ 18814 | -3/Research | Identified exit to Armory 18814 | -3/Research | Identified exit to Testing 19005 | -3/Research | Research terminal network offline 19369 | -3/Research | Entered Armory 19573 | -3/Armory | Found Prototype Device 19573 | -3/Armory | Identified Adv. Kinecellerator 19579 | -3/Armory | Found Prototype Processor 19579 | -3/Armory | Identified Exp. Melee Analysis Suite 19598 | -3/Armory | Found Adv. Kinecellerator 19601 | -3/Armory | Found Exp. Melee Analysis Suite 19604 | -3/Armory | Found Exp. Melee Analysis Suite 19956 | -3/Armory | Crushed by falling debris 19977 | -3/Armory | System corruption reached 10% 20080 | -3/Armory | Found Prototype Device 20080 | -3/Armory | Identified Adv. EM Shield 20109 | -3/Armory | Found Prototype Device 20109 | -3/Armory | Identified Exp. ECM Suite 20338 | -3/Armory | Lost 8 parts (1p2n2u3w) 20341 | -3/Armory | Destroyed 8 combat bots 20477 | -3/Armory | Spotted B-86 Titan 20609 | -3/Armory | Lost 3 parts (1p2u) 20973 | -3/Armory | Discovered exit to Research (range 4) 21017 | -3/Armory | Discovered new exit (range 10) 21030 | -3/Armory | Entered Lab 21030 | -3/Lab | Discovered exit to Research (range 9) 21045 | -3/Lab | Hidden lab's door opened automatically 21045 | -3/Lab | Sensor layout match revealed 21046 | -3/Lab | Gained access to the hidden lab's interior 21071 | -3/Lab | Found Alien Artifact 21084 | -3/Lab | Found Alien Artifact 21084 | -3/Lab | Identified Integrated Mediator 21084 | -3/Lab | Installed Integrated Mediator, increased core attachment efficiency 21094 | -3/Lab | Found Alien Artifact 21094 | -3/Lab | Identified Core Expander 21094 | -3/Lab | Installed Core Expander, added new Propulsion slot 21125 | -3/Lab | Found Prototype Hackware 21128 | -3/Lab | Found Prototype Device 21128 | -3/Lab | Identified AEGIS Remote Shield 21136 | -3/Lab | Found Prototype Energy Cannon 21136 | -3/Lab | Identified Warp Cannon 21141 | -3/Lab | Found Prototype Energy Cannon 21141 | -3/Lab | Identified Potential Cannon 21189 | -3/Lab | Found Alien Artifact 21894 | -3/Lab | Entered Research 21894 | -2/Research | Warlord forces began assault on 0b10 21894 | -2/Research | Evolved 2 slots: Utility x2 22004 | -2/Research | Research machine network offline 22116 | -2/Research | Met up with Warlord 22173 | -2/Research | Borebot progress halted 22221 | -2/Research | Spotted Striker 22239 | -2/Research | Spotted Striker 22264 | -2/Research | Lost 5 allies 22535 | -2/Research | Discovered new exit (range 15) 22602 | -2/Research | Build established: Scavenger-Golem 22627 | -2/Research | Borebot progress halted 22855 | -2/Research | Warlord destroyed during the assault 22859 | -2/Research | Spotted Executioner 22859 | -2/Research | Spotted Executioner 22860 | -2/Research | Spotted Striker 22864 | -2/Research | Spotted Striker 22929 | -2/Research | Lost 6 allies 22985 | -2/Research | Discovered new exit (range 19) 22985 | -2/Research | Spotted B-90 Cyclops 23037 | -2/Research | Entered Quarantine 23051 | -2/Quarantine | Identified Core Reset Matrix 23051 | -2/Quarantine | Identified Transdimensional Reconstructor 23051 | -2/Quarantine | Used Core Reset Matrix 23055 | -2/Quarantine | Detected hypermatrix surge 23055 | -2/Quarantine | Sensed 11 artifacts in vicinity 23086 | -2/Quarantine | Lost 4 allies 23216 | -2/Quarantine | Discovered new exit (range 17) 23253 | -2/Quarantine | Identified Deep Network Scanner 23255 | -2/Quarantine | Central database locked down 23311 | -2/Quarantine | Found Transdimensional Reconstructor 23323 | -2/Quarantine | Found Dimensional Node Initializer 23336 | -2/Quarantine | Found Hpw. Transdimensional Reconstructor 23338 | -2/Quarantine | Found Hpw. Transdimensional Reconstructor 23343 | -2/Quarantine | Found Transdimensional Reconstructor 23432 | -2/Quarantine | Found Subatomic Replicator 23534 | -2/Quarantine | Found Matter Drive 23557 | -2/Quarantine | Build established: Hacker-Golem 23627 | -2/Quarantine | Spotted Fortress 23712 | -2/Quarantine | Discovered new exit (range 5) 23712 | -2/Quarantine | Discovered new exit (range 6) 23721 | -2/Quarantine | Entered Protoforge 23722 | -2/Protoforge | Sensed 2 artifacts in vicinity 23788 | -2/Protoforge | Spotted B-90 Cyclops 23790 | -2/Protoforge | Superfortress began startup sequence 23795 | -2/Protoforge | Destroyed B-90 Cyclops 23920 | -2/Protoforge | Destroyed 8 combat bots 23952 | -2/Protoforge | Spotted Overlord 23981 | -2/Protoforge | Discovered new exit (range 22) 24018 | -2/Protoforge | Initialized slip node 24143 | -2/Protoforge | Spotted Hotshot 24147 | -2/Protoforge | Spotted Hotshot 24155 | -2/Protoforge | Spotted Hotshot 24156 | -2/Protoforge | Spotted Hotshot 24187 | -2/Protoforge | Additional patrols dispatched to research labs 24210 | -2/Protoforge | Found Prototype Device 24210 | -2/Protoforge | Identified Crosscalibrator 24220 | -2/Protoforge | Found Prototype Device 24220 | -2/Protoforge | Identified Cep. Antimissile System 24230 | -2/Protoforge | Spotted Immortal 24230 | -2/Protoforge | Spotted Immortal 24258 | -2/Protoforge | Spotted Immortal 24258 | -2/Protoforge | Spotted Immortal 24267 | -2/Protoforge | Spotted Decapitator 24267 | -2/Protoforge | Spotted Decapitator 24267 | -2/Protoforge | Spotted Decapitator 24267 | -2/Protoforge | Spotted Decapitator 24376 | -2/Protoforge | Warp Cannon suddenly broke down 24437 | -2/Protoforge | Destroyed Decapitator 24437 | -2/Protoforge | Destroyed Decapitator 24441 | -2/Protoforge | Destroyed Decapitator 24464 | -2/Protoforge | Forge Plexus network access discovered 24477 | -2/Protoforge | Spotted Immortal 24499 | -2/Protoforge | Destroyed Immortal 24500 | -2/Protoforge | Build established: Alien-Golem 24514 | -2/Protoforge | Destroyed Immortal 24518 | -2/Protoforge | Destroyed Immortal 24553 | -2/Protoforge | Destroyed 8 combat bots 24564 | -2/Protoforge | Found Cep. Antimissile System 25048 | -2/Protoforge | Spotted Decapitator 25063 | -2/Protoforge | Destroyed Decapitator 25156 | -2/Protoforge | Destroyed Decapitator 25165 | -2/Protoforge | Found Cep. Matter Streamer 25214 | -2/Protoforge | Spotted V317-r 25238 | -2/Protoforge | Destroyed V317-r 25261 | -2/Protoforge | Lost 4 parts (4u) 25344 | -2/Protoforge | Found Cep. Antigrav Storage Unit 25356 | -2/Protoforge | Found Cep. Matter Streamer 25456 | -2/Protoforge | Found Cep. Weapon Articulator 25458 | -2/Protoforge | Found Femtoactuators 25464 | -2/Protoforge | Spotted V753-d 25467 | -2/Protoforge | Spotted V786-q 25467 | -2/Protoforge | Spotted V678-a 25468 | -2/Protoforge | Found Exp. Force Booster 25470 | -2/Protoforge | Found Cep. Melee Reflex Suite 25486 | -2/Protoforge | System corruption reached 10% 25530 | -2/Protoforge | Spotted Decapitator 25530 | -2/Protoforge | Spotted Decapitator 25530 | -2/Protoforge | Spotted V364-h 25530 | -2/Protoforge | Spotted V789-m 25532 | -2/Protoforge | Spotted Decapitator 25540 | -2/Protoforge | Destroyed Decapitator 25543 | -2/Protoforge | Destroyed Decapitator 25549 | -2/Protoforge | Destroyed V789-m 25733 | -2/Protoforge | Found Cep. Zero-point Core 25739 | -2/Protoforge | Found Cep. Zero-point Core 25823 | -2/Protoforge | Build established: Hacker-Tank 25868 | -2/Protoforge | Destroyed Immortal 25888 | -2/Protoforge | Destroyed Immortal 25894 | -2/Protoforge | Found Exp. Melee Analysis Suite 25914 | -2/Protoforge | Lost 3 parts (3u) 25935 | -2/Protoforge | Found Prototype Slashing Weapon 25935 | -2/Protoforge | Identified Exp. Terror Saw 25941 | -2/Protoforge | Found Prototype Energy Cannon 25941 | -2/Protoforge | Identified Cep. Plasma Driver 25945 | -2/Protoforge | Found Exp. Jetlance 25948 | -2/Protoforge | Found Faulty Exp. Jetlance 25951 | -2/Protoforge | Found Exp. Jetlance 25955 | -2/Protoforge | Found Exp. Jetlance 25959 | -2/Protoforge | Found Cep. Plasma Driver 25967 | -2/Protoforge | Found Prototype Energy Gun 25967 | -2/Protoforge | Identified Cep. Variable Chargecaster 25973 | -2/Protoforge | Found Cep. XC Strikerail 25982 | -2/Protoforge | Found Cep. Variable Chargecaster 25985 | -2/Protoforge | Found Cep. Plasma Driver 26113 | -2/Protoforge | Spotted Immortal 26113 | -2/Protoforge | Spotted Immortal 26113 | -2/Protoforge | Spotted Immortal 26153 | -2/Protoforge | Warped through subspace to slip node 26158 | -2/Protoforge | Spotted Decapitator 26158 | -2/Protoforge | Spotted Decapitator 26158 | -2/Protoforge | Spotted Decapitator 26158 | -2/Protoforge | Spotted Decapitator 26162 | -2/Protoforge | Entered Access 26162 | -1/Access | Evolved 2 slots: Propulsion x1, Utility x1 26183 | -1/Access | Lost 4 parts (2u2w) 26281 | -1/Access | Found Prototype Launcher 26281 | -1/Access | Identified Mni. Smartbomb Launcher 26417 | -1/Access | Garrison activated, responded to threat 26475 | -1/Access | Destroyed 13 combat bots 26554 | -1/Access | Destroyed 7 combat bots 26560 | -1/Access | Identified exit to Garrison 26568 | -1/Access | Entered Garrison 26650 | -1/Garrison | Triggered checkpoint 26651 | -1/Garrison | Found embedded Infiltrators 26856 | -1/Garrison | Triggered checkpoint 26856 | -1/Garrison | Spotted B-99 Colossus 26862 | -1/Garrison | Triggered checkpoint 26874 | -1/Garrison | Destroyed B-99 Colossus 26881 | -1/Garrison | Triggered checkpoint 26980 | -1/Garrison | Phase Generator disabled 26980 | -1/Garrison | Discovered new exit (range 16) 27005 | -1/Garrison | Discovered new exit (range 14) 27005 | -1/Garrison | Discovered new exit (range 38) 27005 | -1/Garrison | Discovered new exit (range 91) 27033 | -1/Garrison | Entered Access 27033 | -1/Access | Accompanied by 1 ally 27146 | -1/Access | Spotted B-99 Colossus 27173 | -1/Access | Spotted B-99 Colossus 27181 | -1/Access | Destroyed B-99 Colossus 27224 | -1/Access | Lost 5 allies 27330 | -1/Access | Discovered new exit (range 8) 27339 | -1/Access | Entered Command 27390 | -1/Command | Disengaged cave seal 27390 | -1/Command | Assembled emerged from the dark tunnel 27499 | -1/Command | Build established: Hacker-Gunner 27603 | -1/Command | Spotted M Guard 27603 | -1/Command | Spotted M Guard 27603 | -1/Command | Spotted Combat Programmer 27605 | -1/Command | Spotted Combat Programmer 27606 | -1/Command | Destroyed M Guard 27616 | -1/Command | Destroyed M Guard 27622 | -1/Command | Destroyed Combat Programmer 27625 | -1/Command | Destroyed Combat Programmer 27625 | -1/Command | All MAIN.C guards destroyed 27642 | -1/Command | Found Prototype Protection 27642 | -1/Command | Identified Hvy. Regenerative Plating 27644 | -1/Command | Found Prototype Energy Cannon 27644 | -1/Command | Identified Cld. Nova Cannon 27656 | -1/Command | Lost 5 allies 27793 | -1/Command | Met MAIN.C 27806 | -1/Command | 0b10 Conduit disabled 27821 | -1/Command | System corruption reached 10% 27858 | -1/Command | Destroyed MAIN.C Shell 27861 | -1/Command | MAIN.C activated Command garrisons 27938 | -1/Command | Core integrity fell below 50% 27946 | -1/Command | Emitted hypermatrix ping 27951 | -1/Command | Assembled emerged from beneath the floor 27955 | -1/Command | Core integrity fell below 20% 27961 | -1/Command | Destroyed by MAIN.C with Omega Cannon Last Messages --------------- 27949_ Exp. Jetlance destroyed. 27949_ Critical hit (Blast). 27949_ Knocked back. 27951_ Assembled emerge from beneath the floor. 27951_ Slug penetrates MAIN.C. 27951_ Dropped Cep. Zero-point Core. 27952_ MAIN.C suffers critical hit (Impale). 27952_ Slug penetrates MAIN.C. 27953_ MAIN.C suffers critical hit (Burn). 27954_ Knocked back. 27954_ Slug penetrates MAIN.C. 27955_ MAIN.C suffers critical hit (Burn). 27956_ Slug penetrates MAIN.C. 27957_ Knocked back. 27958_ Slug penetrates MAIN.C. 27958_ MAIN.C suffers critical hit (Burn). 27958_ Slug penetrates MAIN.C. 27959_ MAIN.C suffers critical hit (Impale). 27960_ Slug penetrates MAIN.C. [Achievement: Torch] Map ----- +----------------------------------------------------+ | ?????????????????????????????????????????????????? | | ?????????????????????????????????????????????????? | | ?????????????????????????????????????????????????? | | ?????????????????????????????????????????????????? | | ?????????????????????????????????????????????????? | | ?????????????????????????????????????????????????? | | ?????????????????????????????????????????????????? | | ?????????????????????????????????????????????????? | | ?????????????????????????????????????????????????? | | ?????????????????????????????????????????????????? | | ??????????????????#############??????????????????? | | ??????????????????"""" #??????????????????? | | ????????????????? "" #??????????????????? | | ???????????????? "" #################### | | ???????????????""""" ; | | ??????????????? """ ; | | ???????????????"""" / | | ???????????????"""" ################### | | ??????????" """""" #?????????????????# | | ??????????" "" #?????????????????# | | ????????? " "!*= % #?????????????????# | | ????????????""" !%[ "#?????????????????#+ | | ?????????"" = % """""#?????????????????# | | ????????# """ " %"""#?????????????????# | | ????????# " " "M[!%! #?????????????????# | | ????????# " " "*@aa" #?????????????????#! | | ????????? " " " "!a!a][#?????????????????# | | ????????? """ " " %aa*"" #?????????????????# | | ???????????? ?? " " *]!! #?????????????????## | | ????????????????"""""" #??????????????????? | | ?????????????????? " "" "" ""#??????????????????? | | ?????????????????? " " " #??????????????????? | | ??????????????????#############??????????????????? | | ?????????????????????????????????????????????????? | | ?????????????????????????????????????????????????? | | ?????????????????????????????????????????????????? | | ?????????????????????????????????????????????????? | | ?????????????????????????????????????????????????? | | ?????????????????????????????????????????????????? | | ?????????????????????????????????????????????????? | | ?????????????????????????????????????????????????? | | ?????????????????????????????????????????????????? | | ?????????????????????????????????????????????????? | | ?????????????????????????????????????????????????? | | ?????????????????????????????????????????????????? | | ?????????????????????????????????????????????????? | | ?????????????????????????????????????????????????? | | ?????????????????????????????????????????????????? | | ?????????????????????????????????????????????????? | | ?????????????????????????????????????????????????? | +----------------------------------------------------+ Best States ------------- Heat Dissipation 121 Energy Generation 91 Energy Capacity 2690 Matter Stores 300 Matter Capacity 300 Sight Range 23 Robot Scan Range 16 Terrain Scan Density 210 ECM Strength 3 Cloak Strength 4 Additional Mass Support 20 Armor Coverage 1200 Resistance: KI 15 Resistance: TH 15 Resistance: EX 15 Resistance: EM 50 Resistance: I 15 Resistance: S 15 Resistance: P 15 Weapon Shielding 100 Point Defense Rating 480 Melee Speed Boost 50 Phase Shifting 15 Evasion (%) 77 Targeting Accuracy 38 Melee Accuracy 36 Target Analysis 8 Core Analysis 8 Recoil Reduction 4 Energy Filtering 50 Particle Charging 15 Kinecelleration 30 Force Boost 50 Salvage Targeting 3 Offensive Hacking 25 Item Schematics ----------------- None Robot Schematics ------------------ None Fabricated ------------ Nothing Repaired ---------- Hcp. Storage Unit | 39% | -8/Materials Studied --------- Centrium Leg | -2/Quarantine | Hacked Mic. Antimatter Reactor | -2/Quarantine | Hacked Biometal Leg | -2/Quarantine | Hacked Quantum Reactor | -2/Quarantine | Hacked Enh. Nova Cannon | -2/Quarantine | Hacked Alien Tech Used ----------------- Integrated Mediator Core Expander Core Reset Matrix Dimensional Node Initializer Matter Drive Transdimensional Reconstructor Achievements -------------- All Kinds Of Bad News Boltbath Definitely A Prototype Equal Opportunity Bot Hammer Time Not Immortal After All Physics Hates This One Trick Sniper That's One Door That Should Stay Closed Torch Challenges ------------ None Game ------ Seed CoreTeleporterTreads Manual? 0 Play Time 05:07:05 Cumulative 307.9 hours Start 2025.12.02 @ 16:16:05 End 2025.12.03 @ 22:00:27 Sessions 15 Manual Loads 0 Difficulty Rogue Special Mode None Game No. 377 Rogue 377 Adventurer 0 Explorer 0 Win Type - Total 21 Types 13/0/3/1/1/0/1/1/0/1 Lore% 78 Gallery% 77 Achievement% 62 Wizard Run 0 Options --------- Layout 1 ASCII 0 Keyboard 1 Movement Numpad Keybinds 0 Fullscreen 2 Font 32/SmallcapsGlow Map View 77x35 Zoom Use 0% Tactical HUD 1 Map Filters NONE Filters NONE Steam 1 RUN: 16b6deb5-7d06-44aa-baac-097284bab6eb